Cogmind - Beta 11 X5 @@@ ROGUE MODE // 2021.06.07 @ 23:41:20 Player: Terminus Result: Escaped! Performance ------------- Evolutions (9) 4500 Regions Visited (30) 6000 Robots Destroyed (412) 2060 Value Destroyed (24930) 24930 Prototype IDs (83) 1660 Alien Tech Used (13) 2600 Bonus (16722) 16722 TOTAL SCORE: 58472 Bonus ------- High Alert Combat Kills 975 Follower Combat Kills 1642 Network Hubs Disabled 200 Met Data Miner 300 Met Imprinter 300 Built Enhanced Grunts 300 A7 Reached Mainframe 300 Found Hidden Lab 3000 Destroyed MAIN.C Guards 500 Met MAIN.C 5000 Destroyed MAIN.C Shell 5000 Win 3000 Friendly Fire -3795 Cogmind --------- Core Integrity 949/1600 Matter 292/300 Energy 277/840 System Corruption 63% Temperature Cool (0) Movement Walking (90) Location To Epsilon Eridani Parts ------- > --- POWER (3) -------- Zero-point Reactor > --- PROPULSION (6) --- Experimental Biometal Leg Experimental Biometal Leg Experimental Biometal Leg Experimental Biometal Leg Experimental Biometal Leg Experimental Biometal Leg > --- UTILITY (14) ----- Experimental Cooling System Experimental Cooling System Huge Storage Unit Experimental Energy Well Experimental Targeting Computer Experimental Targeting Computer Advanced Target Analyzer Experimental Weapon Cycler SHELL Armor AEGIS Remote Shield > --- WEAPON (3) ------- Heavy Quantum Rifle Heavy Quantum Rifle Heavy Quantum Rifle > --- INVENTORY (25) --- Zero-point Reactor Experimental Cooling System Experimental Energy Well (600) Experimental Energy Well (600) Experimental Energy Well (600) Experimental Energy Well (600) Experimental Energy Well (600) Long-range Sensor Array Advanced Transmission Jammer EM Dispersion Field Transdimensional Reconstructor Compact HERF Cannon Hypervelocity Multirail Hypervelocity Multirail Neutron Missile Launcher Peak State ------------ > --- POWER ------------ Zero-point Reactor Vortex Chain Reactor > --- PROPULSION ------- Myomer Exoskeleton Myomer Exoskeleton > --- UTILITY ---------- Experimental Cooling System Coolant Network Huge Storage Unit Experimental Energy Well Experimental Targeting Computer Experimental Targeting Computer Advanced Target Analyzer Particle Accelerator Experimental Weapon Cycler SHELL Armor AEGIS Remote Shield > --- WEAPON ----------- Heavy Quantum Rifle Heavy Quantum Rifle Heavy Quantum Rifle > --- INVENTORY -------- Zero-point Reactor Experimental Biometal Leg Experimental Biometal Leg Experimental Biometal Leg Experimental Biometal Leg Experimental Biometal Leg Experimental Biometal Leg Experimental Cooling System Experimental Cooling System Experimental Energy Well Experimental Energy Well Experimental Energy Well Experimental Energy Well Experimental Energy Well Long-range Sensor Array Advanced Particle Charger Advanced Transmission Jammer EM Dispersion Field AEGIS Remote Shield Transdimensional Reconstructor Heavy Quantum Rifle Compact HERF Cannon Hypervelocity Multirail Hypervelocity Multirail Neutron Missile Launcher [Rating: 284] Favorites ----------- Power Particle Reactor Engine Cooled Ion Engine Power Core Micro Fission Core Reactor Particle Reactor Propulsion Enhanced Flexi-carbon Leg Treads Armored Heavy Treads Leg Enhanced Flexi-carbon Leg Utility High-capacity Storage Unit Device Improved Heat Sink Storage High-capacity Storage Unit Processor Advanced Signal Interpreter Hackware Quantum Router Protection Layered Medium Armor Plating Artifact Microwarp Drive Weapon Cooled Plasma Cannon Energy Gun Beam Rifle Energy Cannon Cooled Plasma Cannon Ballistic Gun Hypervelocity Multirail Ballistic Cannon Omega Cannon Launcher Rocket Launcher Special Weapon Improved Plasma Cutter Impact Weapon Core Stripper Slashing Weapon Axe Piercing Weapon Heavy Pick Build | -11 -10 -10 -9 -9 -8 -7 -7 -7 -7 -6 -6 -6 -6 -6 -5 -5 -5 -5 -5 -5 -4 -4 -4 -3 -3 -2 -2 -2 -1 -1 ------- Run | Scr Mat Min Mat Min Mat Fac Low Low Dat Pro Fac Low Low Zio Pro Fac Ext Cet Arc Hub Fac Arm Lab Res Qua Res Tes Sec Acc Com Slots Evolved 18 | . . . 2 . 2 2 . . . . 2 . . . . 2 . . . . 2 . . 2 . 2 . . 2 . Power 2 | . . . . . . . . . . . . . . . . . . . . . 1 . . . . . . . 1 . Propulsion 4 | . . . . . 1 . . . . . . . . . . 1 . . . . 1 . . 1 . . . . . . Utility 11 | . . . 1 . 1 2 . . . . 2 . . . . 1 . . . . . . . 1 . 2 . . 1 . Weapon 1 | . . . 1 . . . . . . . . . . . . . . . . . . . . . . . . . . . Parts Attached 581 | 6 6 6 25 6 25 4 10 3 18 17 28 2 . . 4 23 21 7 3 12 30 65 5 50 32 15 53 37 9 59 Power 38 | 1 1 . 2 . 2 . . . 1 . 2 . . . . 2 1 1 1 . 1 6 . 2 2 . 4 . 1 8 Engine 8 | 1 1 . 2 . 2 . . . 1 . . . . . . . . . . . . 1 . . . . . . . . Core 5 | . . . . . . . . . . . . . . . . 1 1 . . . . 3 . . . . . . . . Reactor 25 | . . . . . . . . . . . 2 . . . . 1 . 1 1 . 1 2 . 2 2 . 4 . 1 8 Propulsion 71 | 2 2 . 3 1 8 . . . 4 2 3 . . . 1 2 . . 1 3 3 6 . 13 7 1 2 . . 7 Treads 2 | . . . . . . . . . . . . . . . . . . . . . . . . 2 . . . . . . Leg 69 | 2 2 . 3 1 8 . . . 4 2 3 . . . 1 2 . . 1 3 3 6 . 11 7 1 2 . . 7 Wheel . | . . . . . . . . . . . . . . . . . . . . . . . . . . . . . . . Hover . | . . . . . . . . . . . . . . . . . . . . . . . . . . . . . . . Flight . | . . . . . . . . . . . . . . . . . . . . . . . . . . . . . . . Utility 292 | 1 2 . 5 3 3 3 4 . 7 9 14 . . . 1 17 11 3 . 6 20 43 4 21 15 8 27 29 8 28 Device 183 | . 1 . 4 2 1 1 2 . 4 6 7 . . . 1 8 8 1 . 3 9 32 2 10 12 5 19 22 5 18 Storage 17 | 1 1 . . 1 . . . . . . . . . . . 1 . . . . 2 1 . . 1 . 3 . 1 5 Processor 12 | . . . . . . 1 . . . . . . . . . 1 . . . . 1 2 . 2 . . 1 . 1 3 Hackware 10 | . . . . . . 1 . . . . 2 . . . . 2 . . . . 2 . 1 1 . 1 . . . . Protection 69 | . . . 1 . 2 . 2 . 3 3 5 . . . . 5 3 2 . 3 6 8 1 8 2 2 4 6 1 2 Artifact 1 | . . . . . . . . . . . . . . . . . . . . . . . . . . . . 1 . . Weapon 180 | 2 1 6 15 2 12 1 6 3 6 6 9 2 . . 2 2 9 3 1 3 6 10 1 14 8 6 20 8 . 16 Energy Gun 68 | 1 1 3 8 1 6 . 2 1 1 . 4 . . . . . 3 3 1 1 2 3 . 3 2 1 6 2 . 13 Energy Cannon 66 | . . . 1 . 3 . 2 . 3 5 5 1 . . 1 2 5 . . 1 3 6 1 8 3 3 7 4 . 2 Ballistic Gun 17 | 1 . . 4 1 1 . . . . . . . . . . . . . . . . . . 1 1 1 4 2 . 1 Ballistic Cannon 1 | . . . . . . . . . . . . . . . . . . . . . . . . . . . 1 . . . Launcher 21 | . . 3 2 . 2 . 2 1 1 1 . 1 . . 1 . 1 . . 1 . 1 . 2 1 1 . . . . Special Weapon 2 | . . . . . . . . . . . . . . . . . . . . . 1 . . . . . 1 . . . Impact Weapon 2 | . . . . . . . . . . . . . . . . . . . . . . . . . 1 . 1 . . . Slashing Weapon 1 | . . . . . . 1 . . . . . . . . . . . . . . . . . . . . . . . . Piercing Weapon 2 | . . . . . . . . 1 1 . . . . . . . . . . . . . . . . . . . . . Special Melee Weapon . | . . . . . . . . . . . . . . . . . . . . . . . . . . . . . . . Unidentified Prototypes 59 | . . . 3 . . . . . 1 . 6 . . . . 3 . 2 . 1 2 1 4 . 7 1 9 9 1 9 Corrupted Parts 13 | . . . . . . . . . 3 6 . . . . . . . . . . . 2 . 1 . . . . . 1 System Corruption 75 | . . . . . . . . . 22 40 . . . . . . . . . . . 8 . 2 . . . . . 3 Parts Lost 70 | . . . 1 . 3 . . . 12 . 2 . . . 1 . 2 . . . 1 17 . 7 . 2 2 1 . 19 Power 9 | . . . . . 1 . . . 1 . . . . . . . . . . . 1 3 . . . . 1 . . 2 Propulsion 15 | . . . 1 . 1 . . . 4 . . . . . . . . . . . . 5 . 1 . 1 . . . 2 Utility 25 | . . . . . . . . . 4 . 1 . . . 1 . . . . . . 5 . 2 . . . 1 . 11 Weapon 21 | . . . . . 1 . . . 3 . 1 . . . . . 2 . . . . 4 . 4 . 1 1 . . 4 Highest Loss Streak 16 | . . . 1 . 1 . . . 12 . 1 . . . 1 . 2 . . . 1 16 . 4 . 1 2 1 . 6 Average Slot Usage (%) 94 | . 92 100 99 100 99 99 100 100 85 100 99 100 100 100 100 99 99 99 99 100 99 96 81 91 99 99 84 74 75 70 Engine 3 | . 13 14 11 11 9 7 7 7 7 7 1 . . . . . . . . . . . . . . . . . . . Reactor 3 | . . . . . . . . . . . 4 6 6 6 6 4 2 . 5 5 10 6 . 3 9 8 7 4 7 6 Leg 20 | . 28 28 21 22 26 23 23 23 12 23 19 20 20 20 20 23 23 23 23 23 25 24 10 19 26 24 10 8 7 8 Device 17 | . 7 14 20 22 18 23 22 23 16 21 19 20 20 20 20 16 15 16 17 16 14 14 14 16 17 16 15 18 23 18 Storage 6 | . 14 14 11 11 9 7 7 7 7 7 6 6 6 6 6 5 5 5 5 5 5 5 10 4 4 4 4 4 3 6 Processor 4 | . . . . . . 6 7 7 7 7 6 6 6 6 6 5 5 5 5 5 5 5 5 8 9 8 8 8 7 10 Hackware 11 | . . . . . . 7 7 7 7 7 19 13 13 13 13 23 23 23 23 23 21 20 18 17 18 20 19 13 10 1 Protection 2 | . . . 1 . 9 . . . 2 1 . 6 6 6 6 . . . . . . . . . . 4 4 3 3 3 Energy Gun 10 | . 14 13 23 22 18 15 14 14 4 . 7 13 13 13 13 5 7 15 16 17 9 4 5 2 5 2 6 4 3 9 Energy Cannon 5 | . . . . . 4 5 4 1 14 22 11 5 6 6 5 10 8 . . . 5 9 7 8 5 5 4 4 3 . Ballistic Gun 2 | . 14 14 9 11 4 . . . . . . . . . . . . . . . . . . 1 1 3 . 3 3 . Naked Turns . | . . . . . . . . . . . . . . . . . . . . . . . . . . . . . . . Heaviest Build 211 | 12 31 31 41 59 66 59 64 68 73 73 82 80 80 80 80 82 90 79 79 85 109 113 103 118 118 113 118 129 207 211 Greatest Support 210 | 20 26 26 26 23 39 39 39 39 84 84 84 84 84 84 84 112 112 112 112 112 140 140 53 157 176 176 200 210 210 210 Greatest Overweight (x) 21 | 2 2 1 1 2 1 1 1 1 21 . 1 . . . . . . . . . . 3 1 1 . . . . . 1 Average Overweight (x) . | . . 1 1 1 1 1 1 1 1 . . . . . . . . . . . . . 1 . . . . . . . Largest Inventory Capacity 25 | 8 15 15 15 20 20 20 20 20 20 20 20 20 20 20 20 20 20 20 20 20 25 20 20 20 20 20 20 20 25 25 Average Capacity 19 | 7 14 15 15 16 20 20 20 20 20 20 20 20 20 20 20 20 20 20 20 20 20 20 20 20 20 20 20 20 24 25 Most Carried 25 | 2 12 14 15 18 20 20 20 20 20 20 20 20 20 20 20 20 20 20 20 20 20 20 15 20 20 19 20 20 25 25 Average Carried 18 | 1 6 13 14 15 19 18 19 19 16 20 19 19 20 20 19 19 19 20 19 20 19 18 13 15 19 17 18 19 21 21 Final Capacity 25 | 8 15 15 15 20 20 20 20 20 20 20 20 20 20 20 20 20 20 20 20 20 20 20 20 20 20 20 20 20 25 25 Final Carried 21 | 2 12 14 15 18 20 20 20 20 20 20 19 20 20 20 20 20 20 20 20 20 20 12 15 20 19 19 20 20 21 15 Class Distribution -------------------- 19% | Wizard-Skirmisher 18% | Wizard-Mutant 10% | Scavenger-Skirmisher 9% | Hacker-Mutant 8% | Scavenger-Gunner 6% | Tank 6% | Mutant 5% | Scavenger-Mutant 3% | Hacker-Skirmisher 3% | Generator-Gunner Dominant Class ---------------- Mutant | -10/Materials Mutant | -10/Mines Scavenger-Gunner | -9/Materials Scavenger-Gunner | -9/Mines Tank | -8/Materials Scavenger-Skirmisher | -7/Factory Scavenger-Skirmisher | -7/Lower Caves Scavenger-Mutant | -7/Lower Caves Gunner | -7/Data Miner Scavenger-Skirmisher | -6/Proximity Caves Hacker-Skirmisher | -6/Factory Scavenger-Skirmisher | -6/Lower Caves Scavenger-Mutant | -6/Lower Caves Scavenger-Skirmisher | -6/Zion Scavenger-Skirmisher | -5/Proximity Caves Wizard-Skirmisher | -5/Factory Wizard-Skirmisher | -5/Extension Wizard-Skirmisher | -5/Cetus Wizard-Skirmisher | -5/Archives Wizard-Skirmisher | -5/Hub_04(d) Wizard-Skirmisher | -4/Factory Wizard-Skirmisher | -4/Armory Wizard-Mutant | -4/Lab Wizard-Mutant | -3/Research Wizard-Mutant | -3/Quarantine Wizard-Mutant | -2/Research Wizard-Mutant | -2/Testing Hacker-Mutant | -2/Section 7 Hacker-Mutant | -1/Access Generator-Gunner | -1/Command Resources | -11 -10 -10 -9 -9 -8 -7 -7 -7 -7 -6 -6 -6 -6 -6 -5 -5 -5 -5 -5 -5 -4 -4 -4 -3 -3 -2 -2 -2 -1 -1 ----------- Run | Scr Mat Min Mat Min Mat Fac Low Low Dat Pro Fac Low Low Zio Pro Fac Ext Cet Arc Hub Fac Arm Lab Res Qua Res Tes Sec Acc Com Matter Collected 8723 | 263 73 116 483 104 504 16 137 72 181 66 445 154 . 7 70 166 261 70 30 90 297 708 . 853 326 386 581 1375 252 637 Remotely . | . . . . . . . . . . . . . . . . . . . . . . . . . . . . . . . Salvage Created 23932 | 95 160 60 1439 70 2129 16 70 . 438 124 658 164 22 . 29 504 842 271 52 643 708 2423 . 2107 831 637 1330 2719 1369 4022 Parts 1039 | 1 11 8 89 8 123 3 6 . 20 5 41 5 . . 3 19 33 11 . 27 22 69 . 80 34 41 55 133 71 121 Haulers Intercepted 25 | . 2 . 6 . 5 . . . . . . . . . . 1 . . . 1 2 . . 1 1 . 1 2 3 . Recyclers Shooed 7 | . 1 . 2 . 1 . . . . . . . . . . 1 1 . . . . . . . . . . . . 1 Parts Field Recycled . | . . . . . . . . . . . . . . . . . . . . . . . . . . . . . . . Retrieved Matter . | . . . . . . . . . . . . . . . . . . . . . . . . . . . . . . . Parts Self-Destructed 23 | . . . . . . . 7 . . 4 . 4 . . 8 . . . . . . . . . . . . . . . Prevented 3 | . . . . . . . . . . . . . . . 3 . . . . . . . . . . . . . . . Kills | -11 -10 -10 -9 -9 -8 -7 -7 -7 -7 -6 -6 -6 -6 -6 -5 -5 -5 -5 -5 -5 -4 -4 -4 -3 -3 -2 -2 -2 -1 -1 ------- Run | Scr Mat Min Mat Min Mat Fac Low Low Dat Pro Fac Low Low Zio Pro Fac Ext Cet Arc Hub Fac Arm Lab Res Qua Res Tes Sec Acc Com Combat Hostiles Destroyed 300 | . . 5 27 6 32 . 3 . 4 8 7 5 . . 3 6 14 2 1 5 6 34 . 29 10 7 10 27 14 35 Melee 1 | . . . . . . . . . . . . . . . . . . . . . . . . . . . . 1 . . Guns 147 | . . 2 15 6 19 . 1 . . . 3 2 . . . 2 2 2 1 4 2 7 . 4 2 3 5 25 13 27 Cannons 67 | . . . . . 5 . 1 . 1 1 4 . . . . 2 6 . . . 3 16 . 14 6 1 3 . 1 3 AOE 45 | . . 3 9 . 7 . 1 . . 7 . 3 . . 3 . 4 . . . . 1 . 5 . 2 . . . . Classes Destroyed 22 | 1 3 2 5 1 1 . . . . . 1 . . . . 1 1 . . . . . . . 1 . 2 1 . 2 Worker 15 | . . . 1 . 1 . . . . . 4 . . . . . . . . 2 . . . 1 . 1 . 1 3 1 Builder 9 | . . . 1 . 3 . . . . . 1 . . . . . . . . 1 . . . . . 2 . . 1 . Tunneler 3 | . . . 1 . . 1 . . . . . . . . . . . . . . . . . . . 1 . . . . Hauler 25 | . 2 . 6 . 5 . . . . . . . . . . 1 . . . 1 2 . . 1 1 . 1 2 3 . Recycler 13 | 1 . . 2 . 3 . . . . . 1 . . . . . 1 . . . . . . 2 . . . 1 . 2 Operator 6 | . 1 . 1 . 1 . . . . . . . . . . . . . . . . . . . . . . 3 . . Watcher 38 | . 1 . 5 . 5 . . . . . 2 . . . . 1 1 . . 2 1 2 . 2 3 4 3 4 2 . Swarmer 56 | . . 3 10 4 4 . 2 . . 7 . . . . 3 . 5 . . . . . . 10 1 2 . . 5 . Grunt 82 | . . 2 9 . 17 . . . . . 3 3 . . . . 2 . . 2 2 9 . 7 5 . 2 5 3 11 Brawler 7 | . . . 1 . . . . . . . . . . . . . . . . . . 5 . . . . . . . 1 Duelist 7 | . . . . . 3 . . . . . . 1 . . . . . . . . . 1 . 2 . . . . . . Protector 1 | . . . . . . . . . . . . . . . . . . . . . . . . . . . . . . 1 Researcher 1 | . . . . . . . . . . . . . . . . . . . . . . . . . . . 1 . . . Sentry 46 | . . . 7 . 8 . 1 . . 1 3 1 . . . 2 5 . 1 3 3 2 . 3 . 2 . 2 2 . Hunter 19 | . . . . . . . . . . . . . . . . 2 . . . . . 6 . 2 . 2 2 2 1 2 Programmer 47 | . . . . . . . . . . . 1 . . . . 2 . . . . 1 11 . 5 3 1 4 15 3 1 Behemoth 2 | . . . . . . . . . . . . . . . . . 2 . . . . . . . . . . . . . Cetus Guard 2 | . . . . . . . . . . . . . . . . . . 2 . . . . . . . . . . . . S7 Guard 1 | . . . . . . . . . . . . . . . . . . . . . . . . . . . . 1 . . M Guard 2 | . . . . . . . . . . . . . . . . . . . . . . . . . . . . . . 2 Enhanced Grunt 5 | . . . . . . . . . 4 . . . . . . . . . . 1 . . . . . . . . . . Enhanced Q-Series 14 | . . . . . . . . . . . . . . . . . . . . . . . . . . . . . . 14 Combat Programmer 2 | . . . . . . . . . . . . . . . . . . . . . . . . . . . . . . 2 Executioner 2 | . . . . . . . . . . . . . . . . . . . . . . . . . . . . 2 . . Alpha 7 1 | . . . . . . . . . . . . . . . . . . . . . . . . . 1 . . . . . Fortress 1 | . . . . . . . . . . . . . . . . . . . . . . . . . . . 1 . . . Protovariant P 1 | . . . . . . . . . . . . . . . . . . . . . . . . . . . 1 . . . Decomposer 1 | . . . . . . . . . . . . . 1 . . . . . . . . . . . . . . . . . Assembled 2 | . . . . 2 . . . . . . . . . . . . . . . . . . . . . . . . . . Savage 1 | . . . . . . . . . . . . . . . . . . 1 . . . . . . . . . . . . Best Kill Streak 8 | 1 1 3 8 3 6 1 2 . 2 7 2 4 . . 3 2 5 2 1 2 2 5 . 6 6 5 2 4 7 6 Combat Bots Only 7 | . . 3 6 3 4 . 2 . 2 7 2 4 . . 3 2 5 2 1 2 2 5 . 6 6 3 2 3 5 5 Max Kills in Single Turn 4 | 1 1 3 4 2 4 1 1 . 1 1 1 2 1 . 2 1 4 1 1 2 1 1 . 2 1 2 1 2 4 2 Gunslinging 1 | . . . . 1 . . . . . . . . . . . . . . . . . . . . . . . . . . Exploded 4 | . . 3 4 . 4 . 1 . . 1 . 2 . . 2 . 4 . . . . 1 . 2 . 1 . . . . Melee 1 | . . . . . . . . . . . . . . . . . . . . . . . . . . . . 1 . . Uniques/NPCs Destroyed 3 | . . . . . . . . . 1 . . . . . . . . 1 . . . . . . . . . . . 1 Data Miner (-7/Data Miner) A7 (-5/Cetus) MAIN.C Shell (-1/Command) Combat | -11 -10 -10 -9 -9 -8 -7 -7 -7 -7 -6 -6 -6 -6 -6 -5 -5 -5 -5 -5 -5 -4 -4 -4 -3 -3 -2 -2 -2 -1 -1 -------- Run | Scr Mat Min Mat Min Mat Fac Low Low Dat Pro Fac Low Low Zio Pro Fac Ext Cet Arc Hub Fac Arm Lab Res Qua Res Tes Sec Acc Com Damage Taken 31011 | . . 232 763 98 1430 23 157 . 1270 403 810 396 . . 167 298 1161 181 . 397 653 4452 . 2284 622 1336 924 1511 206 11237 Core 2729 | . . 54 146 6 218 . 10 . 132 49 141 122 . . . 47 102 70 . 49 46 682 . 198 42 140 98 22 12 343 Absorbed by Shields 10266 | . . . . . . . . . . . . . . . . . 12 10 . . . . . . . . . 207 218 9819 Reduced by Siege Mode 19 | . . . . . . . . . . . . . . . . . . . . . . . . 19 . . . . . . Core Remaining (%) 68 | 100 . 78 . 62 60 . . . . 72 . . . . 69 . . . . 73 . . 36 . 81 . . 63 . 59 Volleys Fired 1698 | 3 16 18 81 11 109 . 7 . 25 17 44 13 13 . 10 32 43 28 1 52 36 166 31 107 65 46 140 301 69 214 Largest 3 | 2 2 2 3 3 3 . 3 . 3 3 3 3 1 . 3 3 3 3 2 3 3 3 1 3 3 3 1 2 2 3 Hottest 304 | 60 70 70 156 135 190 . 190 . 216 201 240 225 90 . 225 225 278 242 162 255 255 304 35 253 267 243 100 163 170 300 Shots Fired 3016 | 6 32 32 229 33 315 . 10 . 51 25 84 33 13 . 26 69 104 63 2 104 87 292 29 173 97 98 140 304 71 494 Gun 1975 | 6 32 28 222 33 270 . 4 . 4 . 17 20 . . 16 20 33 63 2 104 60 72 . 55 38 65 57 246 45 463 Cannon 963 | . . . . . 40 . 1 . 36 16 67 10 13 . 8 49 70 . . . 26 215 29 109 59 31 69 58 26 31 Launcher 63 | . . 4 7 . 5 . 5 . 11 9 . 3 . . 2 . 1 . . . . 5 . 9 . 2 . . . . Special 15 | . . . . . . . . . . . . . . . . . . . . . 1 . . . . . 14 . . . Kinetic 407 | 3 16 14 44 11 57 . . . . . . . . . . . . . . . . . . 27 8 26 4 137 40 20 Thermal 2204 | 3 16 14 178 22 253 . 5 . 40 16 84 30 13 . 24 69 103 60 2 104 86 277 29 131 89 70 136 78 31 241 Explosive 42 | . . 4 7 . 5 . 5 . . 9 . 3 . . 2 . 1 . . . . . . 4 . 2 . . . . Electromagnetic 82 | . . . . . . . . . 11 . . . . . . . . 3 . . . 15 . 11 . . . . . 42 Slashing 280 | . . . . . . . . . . . . . . . . . . . . . . . . . . . . 89 . 191 Robot Hit Streak 59 | 6 15 4 14 3 15 . 5 . 11 10 9 7 4 . 8 11 19 16 7 9 14 18 . 30 16 11 59 33 12 33 Robot Miss Streak 5 | . 2 2 4 3 4 . 2 . 3 2 2 3 . . 2 4 2 3 . 2 2 4 . 4 3 4 1 5 3 3 Penetration Max 2 | . . . . . . . . . . . . . . . . . . . . . . . . 1 . 1 . 1 2 1 Secondary Targets 12 | . . . 2 1 1 . . . . . . . . . . . . 1 . . . . . . . . . . . 7 Max Gunslinging Chain 1 | . . . 1 1 1 . . . . . . . . . . . . 1 . . . . . . . . . . . 1 Shots Hit Robots 1839 | 6 24 17 129 15 185 1 4 . 34 14 35 13 2 . 17 38 64 50 2 42 56 156 . 95 50 48 68 196 40 438 Core Hits 842 | 2 9 9 64 7 76 1 7 . 29 11 24 12 1 . 6 13 27 14 2 23 19 62 . 58 26 33 30 100 40 137 Critical Kills 82 | . . . . . . . . . . . . . . . . 1 1 . . . 1 2 . 6 1 4 5 35 18 8 Critical Parts Destroyed 99 | . . . . . . . . . . . . . . . . . . . . . . . . 1 1 2 5 60 14 16 Critical Strikes 236 | . 1 . 12 . 12 . . . . . 1 . . . . 2 2 3 . . 1 2 . 7 5 6 13 106 34 29 Burn 34 | . 1 . 12 . 12 . . . . . 1 . . . . 1 1 3 . . . . . . 3 . . . . . Meltdown 15 | . . . . . . . . . . . . . . . . 1 1 . . . 1 2 . 6 1 2 . 1 . . Destroy 179 | . . . . . . . . . . . . . . . . . . . . . . . . 1 1 4 10 105 34 24 Corrupt 1 | . . . . . . . . . . . . . . . . . . . . . . . . . . . . . . 1 Sever 7 | . . . . . . . . . . . . . . . . . . . . . . . . . . . 3 . . 4 Melee Attacks 31 | . . . . . . 3 4 16 2 . . . . . . . . . . . . . . . 1 . 5 . . . Kinetic 6 | . . . . . . . . . . . . . . . . . . . . . . . . . 1 . 5 . . . Impact . | . . . . . . . . . . . . . . . . . . . . . . . . . . . . . . . Slashing 7 | . . . . . . 3 4 . . . . . . . . . . . . . . . . . . . . . . . Piercing 18 | . . . . . . . . 16 2 . . . . . . . . . . . . . . . . . . . . . Sneak Attacks 2 | . . . . . . 1 . . 1 . . . . . . . . . . . . . . . . . . . . . Combat Hostiles . | . . . . . . . . . . . . . . . . . . . . . . . . . . . . . . . Follow-up Attacks . | . . . . . . . . . . . . . . . . . . . . . . . . . . . . . . . Damage Inflicted 66265 | 58 252 417 2792 238 4433 87 376 . 903 974 1228 837 41 . 976 1167 2675 1268 47 1412 1727 6528 . 5361 2121 1947 3190 6042 766 18402 Guns 40984 | 58 247 168 1818 237 3083 . 60 . 72 . 319 240 . . 286 442 543 1268 47 1230 945 1418 . 1181 699 1205 1423 5803 572 17620 Cannons 16802 | . . . . . 556 . 21 . 410 252 723 63 30 . 262 686 1666 . . . 711 4326 . 3083 1421 460 1224 36 179 693 Explosions 6886 | . . 231 938 . 727 . 295 . 322 722 92 534 . . 428 . 435 . . 163 . 708 . 1020 . 271 . . . . Melee 380 | . . . . . . 87 . . 99 . . . . . . . . . . . . . . . . . 194 . . . Ramming 926 | . 5 18 36 1 67 . . . . . 94 . 11 . . 39 31 . . 19 71 76 . 77 1 11 62 203 15 89 Kinetic 4913 | 27 100 80 355 74 550 . . . . . . . . . . . . . . . . . . 499 269 621 233 1372 444 289 Thermal 41903 | 31 147 107 1576 163 3353 . 81 . 482 252 1042 303 30 . 548 1128 2209 1259 47 1230 1656 5870 . 3599 1851 1044 2895 317 307 10376 Explosive 4944 | . . 212 825 . 463 . 295 . . 722 92 534 . . 428 . 435 . . . . 103 . 564 . 271 . . . . Electromagnetic 2470 | . . . . . . . . . 322 . . . . . . . . 9 . 163 . 479 . 622 . . . . . 875 Impact . | . . . . . . . . . . . . . . . . . . . . . . . . . . . . . . . Slashing 11010 | . . . . . . 87 . . . . . . . . . . . . . . . . . . . . . 4150 . 6773 Piercing 99 | . . . . . . . . . 99 . . . . . . . . . . . . . . . . . . . . . Highest Corruption 63 | . . . . . . . . . 22 62 3 3 3 3 . 1 1 1 1 2 . 24 24 7 9 . 1 8 . 63 Average Corruption 8 | . . . . . . . . . 19 23 1 3 3 3 . 1 1 1 1 1 . 7 24 4 7 . 1 3 . 41 Corruption Purged . | . . . . . . . . . . . . . . . . . . . . . . . . . . . . . . . Effects 391 | . . . . . . . . . 5 21 5 7 8 1 . 2 7 . 1 5 . 68 27 22 28 . 10 49 . 125 Message Errors 95 | . . . . . . . . . 1 5 4 5 4 . . 2 2 . 1 3 . 15 12 4 5 . 6 9 . 17 Matter Fused 65 | . . . . . . . . . 1 4 . 1 1 . . . . . . . . 15 5 2 6 . . 15 . 15 Heat Flow Errors 38 | . . . . . . . . . . 2 . . 1 . . . . . . . . 10 4 6 7 . . 2 . 6 Energy Discharges 47 | . . . . . . . . . 2 4 . . 1 1 . . 3 . . 2 . 10 1 2 2 . 1 9 . 9 Parts Rejected 9 | . . . . . . . . . . 1 . . . . . . . . . . . . . 2 2 . . . . 4 Data Loss (minor) 46 | . . . . . . . . . . 3 1 1 1 . . . 2 . . . . 11 3 3 2 . 3 6 . 10 Data Loss (major) 8 | . . . . . . . . . . 1 . . . . . . . . . . . 1 . . 2 . . . . 4 Misfires 13 | . . . . . . . . . 1 . . . . . . . . . . . . 2 . 1 2 . . 5 . 2 Alerts 3 | . . . . . . . . . . . . . . . . . . . . . . 1 . . . . . . . 2 Misdirections 6 | . . . . . . . . . . . . . . . . . . . . . . . . . . . . . . 6 Weapon Failures 61 | . . . . . . . . . . 1 . . . . . . . . . . . 3 2 2 . . . 3 . 50 Overload Shots 21 | . . . . . . . . . . . . . . . . . . . . . . 21 . . . . . . . . Effects 3 | . . . . . . . . . . . . . . . . . . . . . . 3 . . . . . . . . Energy Bleed 1 | . . . . . . . . . . . . . . . . . . . . . . 1 . . . . . . . . Short Circuit 2 | . . . . . . . . . . . . . . . . . . . . . . 2 . . . . . . . . Overflow Damage 637 | . . . 9 . 54 . . . . 30 8 . 2 . 39 6 26 . . . 40 138 . 89 27 22 92 36 19 . Projectiles 442 | . . . . . 19 . . . . . 8 . . . . 6 26 . . . 14 120 . 89 27 22 92 . 19 . Explosions 129 | . . . 9 . 35 . . . . 30 . . . . 39 . . . . . . 16 . . . . . . . . Melee 66 | . . . . . . . . . . . . . 2 . . . . . . . 26 2 . . . . . 36 . . Knockbacks 8 | . . . . . 2 . . . . . . . . . . . . . . . . . . 1 . . 2 2 . 1 Impact 8 | . . . . . 2 . . . . . . . . . . . . . . . . . . 1 . . 2 2 . 1 Kinetic . | . . . . . . . . . . . . . . . . . . . . . . . . . . . . . . . Secondary . | . . . . . . . . . . . . . . . . . . . . . . . . . . . . . . . Self-Inflicted Damage 388 | . . 47 39 . 83 . 34 . . 33 . 53 . . . . . . . 99 . . . . . . . . . . Shots 9 | . . 2 1 . 1 . 1 . . 1 . 2 . . . . . . . 1 . . . . . . . . . . Rammed . | . . . . . . . . . . . . . . . . . . . . . . . . . . . . . . . Targets Rammed 72 | . 4 5 7 1 6 . . . . . 6 . 1 . . 6 4 . . 4 2 3 . 4 1 1 5 7 2 3 Kicked 72 | . 4 5 7 1 6 . . . . . 6 . 1 . . 6 4 . . 4 2 3 . 4 1 1 5 7 2 3 Crushed . | . . . . . . . . . . . . . . . . . . . . . . . . . . . . . . . Highest Temperature 348 | 20 24 33 126 . 207 . 18 . 125 159 78 87 89 . 46 . 348 172 8 96 101 232 212 236 186 194 75 84 . 190 Average Temperature 48 | 15 11 14 27 . 46 . 12 . 53 68 30 34 55 . 16 . 80 33 6 31 32 85 102 57 69 66 29 84 . 82 Received Heat Transfer 3974 | . . 93 258 . 738 . 27 . 168 42 186 129 . . 24 18 280 27 . 63 121 329 . 147 85 45 63 99 4 1028 Siege Activations 1 | . . . . . . . . . . . . . . . . . . . . . . . . 1 . . . . . . Total Turns 94 | . . . . . . . . . . . . . . . . . . . . . . . . 94 . . . . . . Longest Duration 94 | . . . . . . . . . . . . . . . . . . . . . . . . 94 . . . . . . Robots Corrupted 11 | . . . . . . . . . 2 . . . . . . . . . . . . 2 . 3 . . . . . 4 Combat Hostiles 11 | . . . . . . . . . 2 . . . . . . . . . . . . 2 . 3 . . . . . 4 Parts Fried 20 | . . . . . . . . . 5 . . . . . . . 1 . . . . 3 . 4 . . . . . 7 Impact Corruptions 5 | . . . . . . . . . . . . . 1 . . . . . . . 1 1 . . . . . 2 . . Robots Melted 31 | . . . 3 . 1 . . . 1 . . . . . . 2 2 . . 1 1 8 . 6 1 2 1 1 . 1 Combat Hostiles 27 | . . . 3 . 1 . . . 1 . . . . . . 2 2 . . 1 1 8 . 3 1 1 1 1 . 1 Parts Melted 120 | . . . 14 . 14 . . . 4 . 6 1 . . . 9 2 . . 4 3 33 . 12 6 5 4 1 . 2 Heat Transferred 53946 | 75 494 309 4897 407 7069 . 148 . 1175 407 1527 444 37 . 703 1610 2692 1761 74 1628 2308 7422 . 3445 2167 1036 3404 444 333 7930 Parts Sabotaged . | . . . . . . . . . . . . . . . . . . . . . . . . . . . . . . . Parts Stolen . | . . . . . . . . . . . . . . . . . . . . . . . . . . . . . . . Parts Stripped . | . . . . . . . . . . . . . . . . . . . . . . . . . . . . . . . Power Chain Reactions 3 | . . . . . . . . . . . . . . . . . . . . . . 3 . . . . . . . . Missiles Intercepted . | . . . . . . . . . . . . . . . . . . . . . . . . . . . . . . . Alert | -11 -10 -10 -9 -9 -8 -7 -7 -7 -7 -6 -6 -6 -6 -6 -5 -5 -5 -5 -5 -5 -4 -4 -4 -3 -3 -2 -2 -2 -1 -1 ------- Run | Scr Mat Min Mat Min Mat Fac Low Low Dat Pro Fac Low Low Zio Pro Fac Ext Cet Arc Hub Fac Arm Lab Res Qua Res Tes Sec Acc Com Peak Influence 823 | 5 33 74 434 138 511 213 . . . . 575 . . . . 468 486 242 211 664 456 440 . 711 512 381 287 394 823 612 Initial 399 | . 3 4 . 57 . 195 . . . . . . . . . 56 228 22 32 73 226 70 . . 399 123 153 72 151 96 Average 169 | 1 11 27 139 44 225 117 . . . . 254 . . . . 87 278 160 146 227 133 144 . 206 257 249 124 163 364 242 Maximum Alert Level 3 | . . . 2 . 2 1 . . . . 2 . . . . 2 2 1 1 2 2 2 . 3 2 1 1 1 3 2 Low Security (%) 69 | 100 100 100 83 100 49 58 . . . . 47 . . . . 90 26 53 48 66 70 83 . 67 32 44 84 67 47 72 Level 1 18 | . . . 13 . 28 41 . . . . 11 . . . . . 50 46 51 5 26 10 . 7 42 55 15 32 17 9 Level 2 10 | . . . 2 . 21 . . . . . 41 . . . . 9 23 . . 28 2 5 . 23 25 . . . 6 18 Level 3 1 | . . . . . . . . . . . . . . . . . . . . . . . . 1 . . . . 28 . Level 4 . | . . . . . . . . . . . . . . . . . . . . . . . . . . . . . . . Level 5 . | . . . . . . . . . . . . . . . . . . . . . . . . . . . . . . . High Security . | . . . . . . . . . . . . . . . . . . . . . . . . . . . . . . . Max Security . | . . . . . . . . . . . . . . . . . . . . . . . . . . . . . . . Squads Dispatched 66 | . 3 . 4 . 2 1 . . . . 6 . . . . 4 2 . . 3 3 9 . 5 6 1 5 8 3 1 Investigation 7 | . 1 . 2 . . . . . . . . . . . . 2 . . . . 1 1 . . . . . . . . Extermination 30 | . . . . . . . . . . . 1 . . . . 2 . . . 1 2 6 . 3 3 1 4 6 1 . Reinforcement 23 | . 2 . 2 . 2 1 . . . . 2 . . . . . 2 . . 2 . 2 . 1 2 . 1 2 2 . Assault 6 | . . . . . . . . . . . 3 . . . . . . . . . . . . 1 1 . . . . 1 Garrison . | . . . . . . . . . . . . . . . . . . . . . . . . . . . . . . . Intercept . | . . . . . . . . . . . . . . . . . . . . . . . . . . . . . . . Construction Impeded 2 | . . . . . . . . . . . 1 . . . . . 1 . . . . . . . . . . . . . Haulers Reinforced 5 | . . . . . . . . . . . . . . . . . . . . . . . . 1 . . 1 1 2 . Cargo Convoy Interrupts 1 | . . . . . . . . . . . 1 . . . . . . . . . . . . . . . . . . . Stealth | -11 -10 -10 -9 -9 -8 -7 -7 -7 -7 -6 -6 -6 -6 -6 -5 -5 -5 -5 -5 -5 -4 -4 -4 -3 -3 -2 -2 -2 -1 -1 --------- Run | Scr Mat Min Mat Min Mat Fac Low Low Dat Pro Fac Low Low Zio Pro Fac Ext Cet Arc Hub Fac Arm Lab Res Qua Res Tes Sec Acc Com Distress Signals 41 | . 2 1 5 1 2 . . . . . 1 . . . . 1 2 1 . 4 1 3 . 1 1 1 . 3 . 11 Communications Jammed 94 | . . . . . . . . . . . . . . . . . . . . . . 11 . 36 1 15 . 24 7 . Distress Signals 90 | . . . . . . . . . . . . . . . . . . . . . . 11 . 36 . 12 . 24 7 . Times Spotted 496 | . 3 5 39 10 41 2 7 . 4 5 11 5 . . 8 9 23 6 2 26 21 47 . 40 22 17 14 40 15 74 Peak Tracking Total 13 | . 1 3 6 3 4 1 3 . 3 4 3 4 . . 4 2 4 5 1 4 6 6 . 6 6 5 2 7 7 13 Tactical Retreats 27 | . . . 5 . 3 . . . . . 1 . . . 1 . 2 . . . 4 2 . 2 1 . . 2 1 3 Traps | -11 -10 -10 -9 -9 -8 -7 -7 -7 -7 -6 -6 -6 -6 -6 -5 -5 -5 -5 -5 -5 -4 -4 -4 -3 -3 -2 -2 -2 -1 -1 ------- Run | Scr Mat Min Mat Min Mat Fac Low Low Dat Pro Fac Low Low Zio Pro Fac Ext Cet Arc Hub Fac Arm Lab Res Qua Res Tes Sec Acc Com Traps Triggered 13 | . . . 1 . . . . . . . 2 . . . . . 3 . . . . 1 . 5 . . 1 . . . Indirectly . | . . . . . . . . . . . . . . . . . . . . . . . . . . . . . . . Trap Hack Attempts . | . . . . . . . . . . . . . . . . . . . . . . . . . . . . . . . Triggered . | . . . . . . . . . . . . . . . . . . . . . . . . . . . . . . . Disarmed 21 | . . . . . . . . . . . . . . . . 6 . . . . . 1 . 6 . . 2 6 . . Reprogrammed . | . . . . . . . . . . . . . . . . . . . . . . . . . . . . . . . Reused . | . . . . . . . . . . . . . . . . . . . . . . . . . . . . . . . Traps Extracted . | . . . . . . . . . . . . . . . . . . . . . . . . . . . . . . . Installed . | . . . . . . . . . . . . . . . . . . . . . . . . . . . . . . . Triggered 5 | . . . . . . . . . . . 1 . . . 2 . . . . . . . . . . . . . . 2 Machines | -11 -10 -10 -9 -9 -8 -7 -7 -7 -7 -6 -6 -6 -6 -6 -5 -5 -5 -5 -5 -5 -4 -4 -4 -3 -3 -2 -2 -2 -1 -1 ---------- Run | Scr Mat Min Mat Min Mat Fac Low Low Dat Pro Fac Low Low Zio Pro Fac Ext Cet Arc Hub Fac Arm Lab Res Qua Res Tes Sec Acc Com Machines Disabled 83 | . . 1 4 1 2 . . . 1 . 2 . . . . 1 4 1 1 18 . 8 3 2 5 . 10 15 1 3 Max in Single Turn 11 | . . 1 2 1 2 . . . 1 . 2 . . . . 1 1 . . 11 . 1 1 1 1 . 1 1 1 1 Garrison Access 10 | . . . . . . 1 . . . . 2 . . . . 1 . . . 2 . . . 2 1 . . . 1 . Network Hub 1 | . . . . . . . . . . . . . . . . . . . . 1 . . . . . . . . . . Machines Sabotaged . | . . . . . . . . . . . . . . . . . . . . . . . . . . . . . . . Garrisons Compromised . | . . . . . . . . . . . . . . . . . . . . . . . . . . . . . . . Overloaded Fab Kills . | . . . . . . . . . . . . . . . . . . . . . . . . . . . . . . . Fab Network Shutdowns 3 | . . . . . . . . . . . . . . . . 1 . . . . 1 . . . . . . . 1 . Hacking | -11 -10 -10 -9 -9 -8 -7 -7 -7 -7 -6 -6 -6 -6 -6 -5 -5 -5 -5 -5 -5 -4 -4 -4 -3 -3 -2 -2 -2 -1 -1 --------- Run | Scr Mat Min Mat Min Mat Fac Low Low Dat Pro Fac Low Low Zio Pro Fac Ext Cet Arc Hub Fac Arm Lab Res Qua Res Tes Sec Acc Com Machines Accessed 153 | . 3 . 11 1 12 4 1 1 4 . 8 . . 1 . 13 14 1 . 9 6 12 . 11 9 2 11 10 8 1 Terminals 104 | . 3 . 9 1 8 3 . . . . 4 . . . . 8 14 1 . 7 2 6 . 5 6 1 9 10 6 1 Fabricators 12 | . . . . . . . . . . . 1 . . . . 1 . . . . 1 5 . 2 . . 1 . 1 . Repair Stations 13 | . . . 1 . 2 . . . . . 2 . . . . 2 . . . . 1 1 . 1 2 . 1 . . . Recycling Units 1 | . . . 1 . . . . . . . . . . . . . . . . . . . . . . . . . . . Scanalyzers 7 | . . . . . 2 . . . . . . . . . . 1 . . . . 2 . . 1 . 1 . . . . Garrison Access 9 | . . . . . . 1 . . . . 1 . . . . 1 . . . 2 . . . 2 1 . . . 1 . Total Hacks 710 | . 12 . 48 6 46 13 1 1 27 . 24 . . 5 . 71 37 1 . 38 58 68 . 56 49 13 59 38 38 1 Successful 524 | . 6 . 39 4 32 5 1 1 27 . 21 . . 5 . 54 23 1 . 25 48 62 . 38 29 8 44 26 24 1 Failed 182 | . 6 . 9 2 14 8 . . . . 2 . . . . 17 14 . . 13 10 6 . 17 19 5 14 12 14 . Catastrophic 27 | . . . 1 . 1 . . . . . . . . . . 1 2 . . 2 1 . . 8 2 . 5 2 2 . Database Lockouts 4 | . . . . . . . . . . . 1 . . . . . . . . . . . . 1 1 . 1 . . . Manual 372 | . 11 . 31 4 25 9 . . . . 8 . . 1 . 32 15 1 . 29 24 32 . 38 29 3 34 21 25 . Terminals 466 | . 12 . 41 6 36 9 . . . . 9 . . . . 41 37 1 . 36 23 30 . 35 36 8 42 38 25 1 Fabricators 92 | . . . . . . . . . . . 4 . . . . 6 . . . . 15 34 . 12 . . 9 . 12 . Repair Stations 73 | . . . 6 . 6 . . . . . 10 . . . . 13 . . . . 10 4 . 5 11 . 8 . . . Recycling Units 1 | . . . 1 . . . . . . . . . . . . . . . . . . . . . . . . . . . Scanalyzers 31 | . . . . . 4 . . . . . . . . . . 10 . . . . 10 . . 2 . 5 . . . . Garrison Access 13 | . . . . . . 4 . . . . 1 . . . . 1 . . . 2 . . . 2 2 . . . 1 . Terminal Hacks 262 | . 4 . 23 3 14 1 1 1 27 . 5 . . 5 . 21 22 1 . 17 15 20 . 15 15 4 19 17 11 1 Record 13 | . . . . 1 . . . . 11 . . . . . . 1 . . . . . . . . . . . . . . Part Schematic 31 | . 1 . . . . . . . 6 . 1 . . 5 . 7 3 . . . 1 1 . 3 1 . 2 . . . Robot Schematic 10 | . . . . . . . . . 7 . . . . . . 2 . . . . . . . 1 . . . . . . Prototype ID Bank 15 | . . . 5 . . . . . 3 . . . . . . 3 1 . . . 3 . . . . . . . . . Open Door 22 | . . . . . . . 1 1 . . . . . . . 1 9 1 . . . 1 . . . . 1 3 3 1 Level Access Points 3 | . . . . . . . . . . . . . . . . . . . . 1 . 1 . . . . . 1 . . Branch Access Points 6 | . . . . . . 1 . . . . 1 . . . . . . . . . 1 . . 1 . 1 . . 1 . Emergency Access Points 1 | . . . . . . . . . . . . . . . . . . . . . . 1 . . . . . . . . Machine Index 4 | . . . 1 . . . . . . . . . . . . 1 . . . . . . . . . 1 . 1 . . Terminal Index 9 | . . . 1 . . . . . . . 1 . . . . . 1 . . 1 1 1 . 1 1 . 1 . . . Fabricator Index 3 | . . . . . . . . . . . . . . . . . . . . . 1 1 . 1 . . . . . . Repair Station Index 3 | . . . . . 1 . . . . . 1 . . . . . . . . . 1 . . . . . . . . . Alert Level 40 | . . . 3 1 3 . . . . . . . . . . 1 2 . . 4 2 4 . 3 3 1 6 4 3 . Unreport Threat 28 | . . . 3 . 2 . . . . . . . . . . . 2 . . 4 3 3 . 1 3 . . 3 4 . Locate Traps 11 | . 1 . 1 . 1 . . . . . 1 . . . . . 1 . . . . 1 . 1 . 1 1 2 . . Disarm Traps 5 | . . . . . . . . . . . . . . . . 1 . . . . . 1 . 1 . . 1 1 . . Recall Extermination 6 | . . . . . . . . . . . . . . . . 1 . . . . 2 . . . 1 . 2 . . . Recall Reinforcements 3 | . . . 1 . . . . . . . . . . . . . 1 . . . . . . . 1 . . . . . Recall Assault 2 | . . . . . . . . . . . . . . . . . . . . . . . . . 2 . . . . . Hauler Manifests 13 | . 1 . 2 . 1 . . . . . . . . . . 1 1 . . 1 . 1 . 1 1 . 2 1 . . Zone Layout 34 | . 1 . 6 1 6 . . . . . . . . . . 2 1 . . 6 . 4 . 1 2 . 3 1 . . Fabricator Hacks 51 | . . . . . . . . . . . 3 . . . . 4 . . . . 9 21 . 4 . . 4 . 6 . Network Status 1 | . . . . . . . . . . . . . . . . . . . . . . 1 . . . . . . . . Load Schematic 21 | . . . . . . . . . . . 1 . . . . 2 . . . . 3 8 . 2 . . 2 . 3 . Build 29 | . . . . . . . . . . . 2 . . . . 2 . . . . 6 12 . 2 . . 2 . 3 . Repair Station Hacks 65 | . . . 5 . 6 . . . . . 10 . . . . 12 . . . . 9 4 . 4 7 . 8 . . . Scan Component 34 | . . . 3 . 3 . . . . . 5 . . . . 6 . . . . 5 2 . 2 4 . 4 . . . Repair 31 | . . . 2 . 3 . . . . . 5 . . . . 6 . . . . 4 2 . 2 3 . 4 . . . Recycling Unit Hacks . | . . . . . . . . . . . . . . . . . . . . . . . . . . . . . . . Scanalyzer 28 | . . . . . 4 . . . . . . . . . . 10 . . . . 9 . . 2 . 3 . . . . Insert Component 15 | . . . . . 2 . . . . . . . . . . 4 . . . . 5 . . 2 . 2 . . . . Analyze 13 | . . . . . 2 . . . . . . . . . . 6 . . . . 4 . . . . 1 . . . . Garrison Access Hacks 8 | . . . . . . 1 . . . . 1 . . . . 1 . . . 2 . . . 1 1 . . . 1 . Seal Access 8 | . . . . . . 1 . . . . 1 . . . . 1 . . . 2 . . . 1 1 . . . 1 . Unauthorized Hacks 110 | . 2 . 11 1 8 3 . . . . 2 . . . . 6 1 . . 6 6 17 . 12 6 1 13 9 6 . Terminals 81 | . 2 . 10 1 8 3 . . . . 1 . . . . 6 1 . . 6 3 6 . 5 6 1 10 9 3 . Track 6 | . . . 2 . . . . . . . . . . . . . . . . . 1 . . . 1 . 2 . . . Assimilate 13 | . . . 3 . . 2 . . . . . . . . . 1 . . . . . 1 . . . . 4 1 1 . Botnet 57 | . 2 . 4 1 8 1 . . . . 1 . . . . 4 1 . . 6 1 4 . 5 5 1 4 7 2 . Detonate 1 | . . . . . . . . . . . . . . . . . . . . . . . . . . . . 1 . . Disrupt 2 | . . . . . . . . . . . . . . . . 1 . . . . . 1 . . . . . . . . Operators 2 | . . . 1 . . . . . . . . . . . . . . . . . 1 . . . . . . . . . Fabricators 27 | . . . . . . . . . . . 1 . . . . . . . . . 3 11 . 6 . . 3 . 3 . Report 6 | . . . . . . . . . . . . . . . . . . . . . 1 1 . 2 . . 1 . 1 . Prioritize 11 | . . . . . . . . . . . 1 . . . . . . . . . 1 5 . 2 . . 1 . 1 . Siphon 10 | . . . . . . . . . . . . . . . . . . . . . 1 5 . 2 . . 1 . 1 . Repair Stations . | . . . . . . . . . . . . . . . . . . . . . . . . . . . . . . . Recycling Units 1 | . . . 1 . . . . . . . . . . . . . . . . . . . . . . . . . . . Tunnel 1 | . . . 1 . . . . . . . . . . . . . . . . . . . . . . . . . . . Scanalyzers . | . . . . . . . . . . . . . . . . . . . . . . . . . . . . . . . Garrison Access 1 | . . . . . . . . . . . . . . . . . . . . . . . . 1 . . . . . . Reprogram 1 | . . . . . . . . . . . . . . . . . . . . . . . . 1 . . . . . . Data Cores Recovered 1 | . . . . . . . . . . . . . . . . . . . . . . . . . . . . 1 . . Used . | . . . . . . . . . . . . . . . . . . . . . . . . . . . . . . . Hacking Detections 96 | . 3 . 10 1 12 4 . . . . 7 . . . . 10 5 . . 6 5 8 . 7 4 . 5 3 6 . Full Trace Events 5 | . . . 1 . . . . . . . . . . . . 2 . . . . 1 1 . . . . . . . . Feedback Events . | . . . . . . . . . . . . . . . . . . . . . . . . . . . . . . . Feedback Blocked . | . . . . . . . . . . . . . . . . . . . . . . . . . . . . . . . Robot Schematics Acquired 10 | . . . . . . . . . 7 . . . . . . 2 . . . . . . . 1 . . . . . . Robots Built . | . . . . . . . . . . . . . . . . . . . . . . . . . . . . . . . Matter . | . . . . . . . . . . . . . . . . . . . . . . . . . . . . . . . Time . | . . . . . . . . . . . . . . . . . . . . . . . . . . . . . . . Total Robot Build Rating . | . . . . . . . . . . . . . . . . . . . . . . . . . . . . . . . Part Schematics Acquired 40 | . 1 . . . 1 . . . 6 . 1 . . 5 . 11 3 . . . 4 1 . 3 1 1 2 . . . Parts Built 30 | . . . . . . . . . . . 2 . . . . 3 . . . . 6 12 . 1 . . 2 . 4 . Matter 6302 | . . . . . . . . . . . 380 . . . . 424 . . . . 1219 2646 . 424 . . 541 . 668 . Time 1755 | . . . . . . . . . . . 142 . . . . 105 . . . . 227 924 . 141 . . 115 . 101 . Total Part Build Rating 182 | . . . . . . . . . . . 10 . . . . 17 . . . . 35 74 . 6 . . 16 . 24 . Parts Repaired 31 | . . . 2 . 3 . . . . . 5 . . . . 6 . . . . 4 2 . 2 3 . 4 . . . Time 1291 | . . . 58 . 96 . . . . . 329 . . . . 325 . . . . 144 80 . 45 115 . 99 . . . Parts Recycled . | . . . . . . . . . . . . . . . . . . . . . . . . . . . . . . . Recycled Matter . | . . . . . . . . . . . . . . . . . . . . . . . . . . . . . . . Retrieved Matter . | . . . . . . . . . . . . . . . . . . . . . . . . . . . . . . . Retrieved Components . | . . . . . . . . . . . . . . . . . . . . . . . . . . . . . . . Parts Scanalyzed 9 | . . . . . 1 . . . . . . . . . . 4 . . . . 3 . . . . 1 . . . . Part Schematics Acquired 9 | . . . . . 1 . . . . . . . . . . 4 . . . . 3 . . . . 1 . . . . Parts Damaged 2 | . . . . . . . . . . . . . . . . 1 . . . . . . . . . 1 . . . . Bothacking | -11 -10 -10 -9 -9 -8 -7 -7 -7 -7 -6 -6 -6 -6 -6 -5 -5 -5 -5 -5 -5 -4 -4 -4 -3 -3 -2 -2 -2 -1 -1 ------------ Run | Scr Mat Min Mat Min Mat Fac Low Low Dat Pro Fac Low Low Zio Pro Fac Ext Cet Arc Hub Fac Arm Lab Res Qua Res Tes Sec Acc Com Used RIF Installer . | . . . . . . . . . . . . . . . . . . . . . . . . . . . . . . . Robots Hacked 1 | . . . . . . . . . . . . . . . . . . . . . 1 . . . . . . . . . Non-combat 1 | . . . . . . . . . . . . . . . . . . . . . 1 . . . . . . . . . Combat . | . . . . . . . . . . . . . . . . . . . . . . . . . . . . . . . Robot Hacks Applied 1 | . . . . . . . . . . . . . . . . . . . . . 1 . . . . . . . . . find_chute 1 | . . . . . . . . . . . . . . . . . . . . . 1 . . . . . . . . . Relay Couplers Released 11 | . . . . . . . . . . . 1 . . . . . . . . . 3 . . 3 . . . . 4 . Machine Destruction 4 | . . . . . . . . . . . 1 . . . . . . . . . . . . 3 . . . . . . Programmers 7 | . . . . . . . . . . . . . . . . . . . . . 3 . . . . . . . 4 . Robots Rewired 10 | . . . . . . . . . . . . . . . . . 7 . . . . 3 . . . . . . . . Allies Hacked 2 | . . . . . . . . . . . . . . . . . . . . . . 1 . . . . 1 . . . Hacks Repelled 3 | . . . . . . . . . . . . . . . . . . . . . . 3 . . . . . . . . Allies | -11 -10 -10 -9 -9 -8 -7 -7 -7 -7 -6 -6 -6 -6 -6 -5 -5 -5 -5 -5 -5 -4 -4 -4 -3 -3 -2 -2 -2 -1 -1 -------- Run | Scr Mat Min Mat Min Mat Fac Low Low Dat Pro Fac Low Low Zio Pro Fac Ext Cet Arc Hub Fac Arm Lab Res Qua Res Tes Sec Acc Com Total Allies 47 | . . . 3 3 . 1 . . . . . . . 2 . 1 24 5 . . . 4 . . . . 3 . 1 . Largest Group 10 | . . . 3 4 2 1 . . . . . . . 2 2 1 10 9 5 4 . 4 . . . . 3 . 1 . Highest-Rated Group 656 | . . . 30 50 18 10 . . . . . . . 190 190 95 368 656 475 380 . 116 . . . . 78 . 45 . Highest-Rated Ally 156 | . . . 10 16 10 10 . . . . . . . 95 95 95 156 148 95 95 . 30 . . . . 26 . 45 . Total Orders 1 | . . . . . . . . . . . . . . . . . . . . . . . . . . . . . 1 . STAY 1 | . . . . . . . . . . . . . . . . . . . . . . . . . . . . . 1 . Ally Attacks 338 | . . . . 26 6 . . . . . . . . . 34 2 96 56 35 71 . 12 . . . . . . . . Total Damage 9476 | . . . . 227 54 . . . . . . . . . 1170 97 2597 1508 1262 2313 . 248 . . . . . . . . Kills 51 | . . . . 6 . . . . . . . . . . 7 . 12 7 4 15 . . . . . . . . . . Allies Corrupted 2 | . . . . . . . . . . . . . . . . . . . . . . 2 . . . . . . . . Allies Melted 8 | . . . . . . . . . . . . . . . . . . . . . . . . . . . . . . 8 Intel | -11 -10 -10 -9 -9 -8 -7 -7 -7 -7 -6 -6 -6 -6 -6 -5 -5 -5 -5 -5 -5 -4 -4 -4 -3 -3 -2 -2 -2 -1 -1 ------- Run | Scr Mat Min Mat Min Mat Fac Low Low Dat Pro Fac Low Low Zio Pro Fac Ext Cet Arc Hub Fac Arm Lab Res Qua Res Tes Sec Acc Com Robot Analysis Total . | . . . . . . . . . . . . . . . . . . . . . . . . . . . . . . . Derelict Logs Recovered 9 | . . 1 . . . . 2 . . 2 . 2 . . 2 . . . . . . . . . . . . . . . Drone Launches . | . . . . . . . . . . . . . . . . . . . . . . . . . . . . . . . Drone Recoveries . | . . . . . . . . . . . . . . . . . . . . . . . . . . . . . . . Exploration | -11 -10 -10 -9 -9 -8 -7 -7 -7 -7 -6 -6 -6 -6 -6 -5 -5 -5 -5 -5 -5 -4 -4 -4 -3 -3 -2 -2 -2 -1 -1 ------------- Run | Scr Mat Min Mat Min Mat Fac Low Low Dat Pro Fac Low Low Zio Pro Fac Ext Cet Arc Hub Fac Arm Lab Res Qua Res Tes Sec Acc Com Turns Passed 36678 | 65 1045 1282 2669 1622 2783 741 957 946 530 424 1945 489 355 1067 592 1540 1308 469 90 956 1493 2645 503 1806 975 825 1744 2341 1119 1352 Spaces Moved 18493 | 45 393 603 1056 615 1102 349 454 425 152 282 1229 354 273 883 437 973 774 209 43 577 817 1072 158 739 469 386 1079 1350 584 611 Core 26 | 16 . . . . . . . . 10 . . . . . . . . . . . . . . . . . . . . . Treads 71 | . . . . . . . . . . . . . . . . . . . . . . . . 71 . . . . . . Legs 18396 | 29 393 603 1056 615 1102 349 454 425 142 282 1229 354 273 883 437 973 774 209 43 577 817 1072 158 668 469 386 1079 1350 584 611 Wheels . | . . . . . . . . . . . . . . . . . . . . . . . . . . . . . . . Hover . | . . . . . . . . . . . . . . . . . . . . . . . . . . . . . . . Flight . | . . . . . . . . . . . . . . . . . . . . . . . . . . . . . . . Fastest Speed 50 | 50 120 200 200 200 200 200 200 200 120 120 120 120 120 120 120 120 120 120 120 120 120 120 200 120 118 118 100 100 100 90 Average Speed 141 | 101 196 200 200 216 200 200 200 200 228 120 120 120 120 120 120 120 120 120 120 120 120 126 200 147 119 118 102 100 100 111 Slowest Speed 1100 | 150 280 200 200 280 200 200 200 200 1100 120 200 120 120 120 120 120 120 120 120 120 120 360 200 200 120 120 118 100 100 180 Overloaded Moves . | . . . . . . . . . . . . . . . . . . . . . . . . . . . . . . . Propulsion Burnouts . | . . . . . . . . . . . . . . . . . . . . . . . . . . . . . . . Robots Hopped . | . . . . . . . . . . . . . . . . . . . . . . . . . . . . . . . Cave-ins Triggered . | . . . . . . . . . . . . . . . . . . . . . . . . . . . . . . . Teleports 2 | . . . . . . . . . . . . . . . . . . . . . . . . . . . . 2 . . Exploration Rate (%) 54 | 4 80 94 75 99 91 10 61 55 78 52 27 53 53 82 67 17 83 57 58 67 14 53 75 20 66 13 84 64 16 20 Regions Visited 30 Branch Regions 20 Pre-discovered Areas 6 | . . 1 1 1 . . . . 1 1 . 1 . . . . . . . . . . . . . . . . . . Known Exits Taken 24 | . . . . . . 1 1 1 1 1 1 1 1 1 1 1 1 1 1 1 1 1 1 1 1 1 1 1 1 . Unknown Exits Taken 6 | 1 1 1 1 1 1 . . . . . . . . . . . . . . . . . . . . . . . . . Scrap Searched 22 | . . 1 . 2 . . 3 1 . 1 . 6 . 3 5 . . . . . . . . . . . . . . . Spaces Dug 393 | . . 10 . . . 2 25 12 . 2 9 22 10 . 11 6 1 . . 160 8 31 . 8 19 14 16 5 20 2 Terrain Destroyed 1060 | . . 49 65 . 88 2 47 12 . 92 48 51 12 . 24 22 42 . . 169 17 84 . 52 27 65 29 19 27 17 Melee 18 | . . . . . . 2 4 12 . . . . . . . . . . . . . . . . . . . . . . Projectile 360 | . . . . . . . . . . 3 19 8 12 . 1 22 10 . . 26 17 67 . 31 27 40 28 11 22 16 AOE 667 | . . 49 65 . 88 . 43 . . 89 29 43 . . 23 . 32 . . 143 . 17 . 21 . 25 . . . . Terrain Rammed . | . . . . . . . . . . . . . . . . . . . . . . . . . . . . . . . Walls Destroyed . | . . . . . . . . . . . . . . . . . . . . . . . . . . . . . . . Machines Disabled . | . . . . . . . . . . . . . . . . . . . . . . . . . . . . . . . Actions | -11 -10 -10 -9 -9 -8 -7 -7 -7 -7 -6 -6 -6 -6 -6 -5 -5 -5 -5 -5 -5 -4 -4 -4 -3 -3 -2 -2 -2 -1 -1 --------- Run | Scr Mat Min Mat Min Mat Fac Low Low Dat Pro Fac Low Low Zio Pro Fac Ext Cet Arc Hub Fac Arm Lab Res Qua Res Tes Sec Acc Com Total 26648 | 56 633 643 1445 887 1452 387 485 491 286 335 1617 391 287 890 487 1287 1076 381 81 755 1254 2111 312 1285 793 684 1565 2135 1089 1068 Wait 5246 | 1 199 7 233 242 173 28 3 43 70 20 281 22 1 8 23 231 185 129 30 103 358 772 111 360 194 233 235 410 416 125 Move 18463 | 44 392 602 1055 614 1101 348 453 424 151 281 1228 353 272 882 436 972 773 208 42 576 816 1071 157 738 469 385 1078 1349 583 610 Hop . | . . . . . . . . . . . . . . . . . . . . . . . . . . . . . . . Pick Up 246 | 2 11 3 18 6 17 3 3 2 14 . 14 1 . . 7 14 15 2 1 2 4 9 6 17 11 3 15 9 5 32 Fast Attach 146 | 6 3 . 10 2 4 . 2 . 4 1 7 . . . . 2 4 5 2 1 9 14 1 21 11 1 14 14 . 8 Attach 119 | . . . 3 . 6 2 . . 8 . 7 . . . 1 4 2 . . . 4 13 3 10 3 2 12 4 4 31 Detach 16 | . . . . . . . . . . . 1 . . . . . . . . . 1 1 . 1 2 . 4 . 1 5 Swap 329 | . 3 6 12 4 15 2 8 3 6 16 14 2 . . 3 17 15 2 1 11 17 38 3 19 18 12 28 28 5 21 Drop 260 | . 5 1 26 7 21 1 5 3 6 . 15 . . . 7 9 20 7 4 6 7 17 . 8 19 1 29 13 4 19 Fire 1698 | 3 16 18 81 11 109 . 7 . 25 17 44 13 13 . 10 32 43 28 1 52 36 166 31 107 65 46 140 301 69 214 Melee 31 | . . . . . . 3 4 16 2 . . . . . . . . . . . . . . . 1 . 5 . . . Ram . | . . . . . . . . . . . . . . . . . . . . . . . . . . . . . . . Kick 71 | . 4 5 7 1 6 . . . . . 6 . 1 . . 6 4 . . 4 2 3 . 4 . 1 5 7 2 3 Crush . | . . . . . . . . . . . . . . . . . . . . . . . . . . . . . . . Escape Stasis 3 | . . . . . . . . . . . . . . . . . 3 . . . . . . . . . . . . . Rewire 20 | . . 1 . . . . . . . . . . . . . . 12 . . . . 7 . . . . . . . . Trap . | . . . . . . . . . . . . . . . . . . . . . . . . . . . . . . . Miscellaneous . | . . . . . . . . . . . . . . . . . . . . . . . . . . . . . . . Route ------- -11/Scrapyard -10/Materials (discovered 3 exits: *Mat / [*Min x2]) -10/Mines (discovered 2 exits: *Mat x2) -9/Materials (discovered 4 exits: *Mat x2 / *Min x2) -9/Mines (discovered 2 exits: *Mat x2) -8/Materials (discovered 2 exits: *Fac x2) -7/Factory (discovered 3 exits: Sto / *Low x2) -7/Lower Caves -7/Lower Caves -7/Data Miner -6/Proximity Caves -6/Factory (discovered 4 exits: *Fac x2 / *Low x2) -6/Lower Caves -6/Lower Caves -6/Zion -5/Proximity Caves -5/Factory (discovered 3 exits: *Fac / *Upp / *Ext) -5/Extension (discovered 2 exits: *Fac / *Cet) -5/Cetus -5/Archives -5/Hub_04(d) (discovered 4 exits: *Fac x4) -4/Factory (discovered 3 exits: Upp x2 / *Arm) -4/Armory (discovered 3 exits: Res x2 / *Lab) -4/Lab -3/Research (discovered 2 exits: *Qua x2) -3/Quarantine -2/Research (discovered 2 exits: *Tes x2) -2/Testing (discovered 2 exits: *Acc / *Sec) -2/Section 7 -1/Access -1/Command (discovered 2 exits: *Sur x2) To Epsilon Eridani History --------- Turn | Location | Event 5 | -11/Scrapyard | Discovered new exit (range 15) 66 | -11/Scrapyard | Entered Materials 300 | -10/Materials | Build established: Mutant 496 | -10/Materials | Discovered new exit (range 13) 648 | -10/Materials | Discovered new exit (range 6) 936 | -10/Materials | Discovered new exit (range 15) 1111 | -10/Materials | Entered Mines 1242 | -10/Mines | Received a Rocket Launcher from a helpful Derelict 1484 | -10/Mines | Discovered new exit (range 8) 1876 | -10/Mines | Learned location of Zion (-6) 1964 | -10/Mines | Discovered new exit (range 13) 2393 | -10/Mines | Entered Materials 2393 | -9/Materials | Evolved 2 slots: Utility x1, Weapon x1 3015 | -9/Materials | Build established: Gunner 3206 | -9/Materials | Discovered new exit (range 15) 3586 | -9/Materials | Discovered new exit (range 11) 3635 | -9/Materials | Discovered new exit (range 16) 3702 | -9/Materials | Repaired Imp. Aluminum Leg 3730 | -9/Materials | Repaired Heat Sink 3751 | -9/Materials | Build established: Scavenger-Gunner 4786 | -9/Materials | Discovered new exit (range 16) 5062 | -9/Materials | Entered Mines 5062 | -9/Mines | Accompanied by 3 allies 5063 | -9/Mines | Assembled infested the area 5068 | -9/Mines | Assisted by a Guerilla fighting off Assembled 5591 | -9/Mines | Learned location of Storage (-7) 5676 | -9/Mines | Assisted by bots powering up and referring to "LRC-V3" 5879 | -9/Mines | Discovered new exit (range 9) 6063 | -9/Mines | Discovered new exit (range 10) 6294 | -9/Mines | Joined a pair of Derelicts in attacking an 0b10 outpost 6684 | -9/Mines | Entered Materials 6684 | -8/Materials | Accompanied by 2 allies 6684 | -8/Materials | Evolved 2 slots: Propulsion x1, Utility x1 6979 | -8/Materials | Build established: Scavenger-Tank 7424 | -8/Materials | Discovered new exit (range 16) 7534 | -8/Materials | Build established: Tank 8051 | -8/Materials | Repaired Imp. Aluminum Leg 8085 | -8/Materials | Repaired Imp. Aluminum Leg 8291 | -8/Materials | Discovered new exit (range 17) 8734 | -8/Materials | Repaired Imp. Aluminum Leg 9467 | -8/Materials | Entered Factory 9467 | -7/Factory | Evolved 2 slots: Utility x2 9558 | -7/Factory | Identified exit to Storage 9558 | -7/Factory | Identified exit to Lower Caves 9757 | -7/Factory | Build established: Scavenger-Skirmisher 10208 | -7/Factory | Entered Lower Caves 10345 | -7/Lower Caves | Build established: Scavenger-Mutant 10372 | -7/Lower Caves | Learned Factory emergency access door positions 10543 | -7/Lower Caves | Attracted the attention of an 0b10 checkpoint 10847 | -7/Lower Caves | Build established: Scavenger-Skirmisher 10901 | -7/Lower Caves | Discovered new exit (range 6) 10910 | -7/Lower Caves | Identified exit to Lower Caves 10955 | -7/Lower Caves | Encountered a Warlord checkpoint 11018 | -7/Lower Caves | Learned Factory garrison access intel 11165 | -7/Lower Caves | Entered another Lower Caves area 11664 | -7/Lower Caves | Build established: Scavenger-Mutant 12077 | -7/Lower Caves | Discovered new exit (range 13) 12109 | -7/Lower Caves | Identified exit to Data Miner 12111 | -7/Lower Caves | Entered Data Miner 12112 | -7/Data Miner | Discovered new exit (range 6) 12150 | -7/Data Miner | Met Data Miner 12192 | -7/Data Miner | Learned location of Section 7 (-2) 12192 | -7/Data Miner | Acquired the access code to Warlord's prototype stash 12220 | -7/Data Miner | Received God Mode back door access code from Data Miner 12263 | -7/Data Miner | Destroyed Data Miner 12266 | -7/Data Miner | Found Prototype Hackware 12270 | -7/Data Miner | Found Prototype Hackware 12276 | -7/Data Miner | Found Prototype Hackware 12277 | -7/Data Miner | Data Conduit disabled 12358 | -7/Data Miner | Lost 12 parts (1p4n4u3w) 12549 | -7/Data Miner | System corruption reached 10% 12639 | -7/Data Miner | Identified exit to Proximity Caves 12641 | -7/Data Miner | Entered Proximity Caves 12692 | -6/Proximity Caves | Attracted the attention of an 0b10 checkpoint 12939 | -6/Proximity Caves | Destroyed 7 combat bots 12977 | -6/Proximity Caves | Learned 4 Factory zone layouts 13030 | -6/Proximity Caves | Discovered new exit (range 6) 13036 | -6/Proximity Caves | Identified exit to Factory 13052 | -6/Proximity Caves | System corruption reached 30% 13065 | -6/Proximity Caves | Entered Factory 13065 | -6/Factory | Evolved 2 slots: Utility x2 13065 | -6/Factory | Identified System Mapper 13066 | -6/Factory | Identified Deep Network Scanner 13068 | -6/Factory | Loaded intel: 4 garrison access locations 13348 | -6/Factory | Build established: Hacker-Skirmisher 13718 | -6/Factory | Found Exp. Targeting Computer 13765 | -6/Factory | Build established: Hacker-Mutant 13937 | -6/Factory | Identified exit to Lower Caves 13984 | -6/Factory | Cargo convoy interrupted 14064 | -6/Factory | Discovered new exit (range 6) 14078 | -6/Factory | Central database locked down 14088 | -6/Factory | Identified exit to Factory 14265 | -6/Factory | Fabricated Adv. Sensor Array (x1) 14321 | -6/Factory | Fabricated Adv. Sensor Array (x1) 14326 | -6/Factory | Repaired Enh. Flexi-carbon Leg? 14431 | -6/Factory | Repaired Enh. Flexi-carbon Leg 14524 | -6/Factory | Repaired Enh. Flexi-carbon Leg? 14527 | -6/Factory | Build established: Hacker-Skirmisher 14571 | -6/Factory | Discovered exit to Factory (range 5) 14623 | -6/Factory | Repaired Plasma Cannon 14664 | -6/Factory | Repaired Cold Fusion Reactor 14815 | -6/Factory | First assault squad dispatched 15010 | -6/Factory | Entered Lower Caves 15012 | -6/Lower Caves | Attracted the attention of an 0b10 checkpoint 15165 | -6/Lower Caves | Identified exit to Lower Caves 15290 | -6/Lower Caves | Spotted B-75 Beast 15299 | -6/Lower Caves | Build established: Scavenger-Skirmisher 15499 | -6/Lower Caves | Entered another Lower Caves area 15716 | -6/Lower Caves | Discovered new exit (range 13) 15841 | -6/Lower Caves | Build established: Scavenger-Mutant 15853 | -6/Lower Caves | Identified exit to Zion 15854 | -6/Lower Caves | Entered Zion 15910 | -6/Zion | System corruption cleaned by Quarantine Array 15998 | -6/Zion | Received a visual enhancement algorithm 16039 | -6/Zion | Discovered new exit (range 8) 16392 | -6/Zion | Build established: Scavenger-Skirmisher 16398 | -6/Zion | Given A8's code to call for help 16802 | -6/Zion | Enhanced Grunt warped into view, answering call for help 16804 | -6/Zion | Enhanced Grunt warped into view, answering call for help 16914 | -6/Zion | Identified exit to Proximity Caves 16921 | -6/Zion | Entered Proximity Caves 16921 | -5/Proximity Caves | Accompanied by 2 allies 16975 | -5/Proximity Caves | Spotted B-75 Beast 17028 | -5/Proximity Caves | Allies destroyed B-75 Beast 17474 | -5/Proximity Caves | Discovered exit to Factory (range 10) 17480 | -5/Proximity Caves | Learned Factory emergency access door positions 17513 | -5/Proximity Caves | Entered Factory 17513 | -5/Factory | Accompanied by 1 ally 17513 | -5/Factory | Evolved 2 slots: Propulsion x1, Utility x1 17514 | -5/Factory | Identified Quantum Router 17832 | -5/Factory | Discovered new exit (range 6) 17983 | -5/Factory | Repaired Broken Enh. Flexi-carbon Leg? 18078 | -5/Factory | Repaired Lyr. Medium Armor Plating 18110 | -5/Factory | Repaired Lrn. Missile Launcher 18144 | -5/Factory | Discovered new exit (range 5) 18149 | -5/Factory | Identified exit to Upper Caves 18211 | -5/Factory | Repaired Phase Cannon 18341 | -5/Factory | Repaired Enh. Flexi-carbon Leg? 18351 | -5/Factory | Discovered new exit (range 18) 18506 | -5/Factory | Build established: Wizard-Skirmisher 18508 | -5/Factory | Repaired Cold Fusion Reactor 18875 | -5/Factory | Fabricated Adv. Signal Interpreter (x2) 18914 | -5/Factory | Local fabrication network quarantined 18938 | -5/Factory | Fabricated Lrn. Sensor Array? 19050 | -5/Factory | Identified exit to Extension 19053 | -5/Factory | Entered Extension 19090 | -5/Extension | Rescued a captive Derelict 19091 | -5/Extension | Rescued a captive Derelict 19218 | -5/Extension | Rescued a captive Derelict 19218 | -5/Extension | Rescued a captive Derelict 19247 | -5/Extension | Rescued a captive Derelict 19257 | -5/Extension | Rescued a captive Derelict 19304 | -5/Extension | Rescued a captive Derelict 19337 | -5/Extension | Rescued a captive Derelict 19343 | -5/Extension | Rescued a captive Derelict 19559 | -5/Extension | P-70 Sage assimilated allied IN-IGE(g) 19667 | -5/Extension | Spotted B-75 Beast 19692 | -5/Extension | Destroyed B-75 Beast 19696 | -5/Extension | Spotted B-75 Beast 19714 | -5/Extension | Destroyed B-75 Beast 19798 | -5/Extension | Rescued a captive Derelict 19799 | -5/Extension | Rescued a captive Derelict 19931 | -5/Extension | Rescued A7 19977 | -5/Extension | Rescued a captive Derelict 19978 | -5/Extension | Rescued a captive Derelict 20166 | -5/Extension | Rescued a captive Derelict 20166 | -5/Extension | Rescued a captive Derelict 20201 | -5/Extension | Rescued a captive Derelict 20327 | -5/Extension | Discovered new exit (range 10) 20328 | -5/Extension | Discovered new exit (range 6) 20350 | -5/Extension | Identified exit to Factory 20354 | -5/Extension | Identified exit to Cetus 20361 | -5/Extension | Entered Cetus 20361 | -5/Cetus | Accompanied by 9 allies (A7) 20366 | -5/Cetus | Acquired a Cetus Manufacturing Module code from A7 20383 | -5/Cetus | Spotted Cetus Guard 20383 | -5/Cetus | Spotted Cetus Guard 20386 | -5/Cetus | Spotted Cetus Guard 20388 | -5/Cetus | Spotted Cetus Guard 20404 | -5/Cetus | Allies destroyed Cetus Guard 20408 | -5/Cetus | Destroyed Cetus Guard 20414 | -5/Cetus | Destroyed Cetus Guard 20419 | -5/Cetus | Allies destroyed Cetus Guard 20471 | -5/Cetus | Started Cetus Manufacturing Module 20479 | -5/Cetus | Escorted A7 to Cetus Mainframe 20496 | -5/Cetus | Manufactured an Enhanced Grunt 20521 | -5/Cetus | Manufactured an Enhanced Grunt 20546 | -5/Cetus | Manufactured an Enhanced Grunt 20571 | -5/Cetus | Manufactured an Enhanced Grunt 20596 | -5/Cetus | Manufactured an Enhanced Grunt 20677 | -5/Cetus | Discovered new exit (range 15) 20694 | -5/Cetus | Identified exit to Archives 20796 | -5/Cetus | Destroyed A7 20800 | -5/Cetus | Extracted ID and sensor layout for unrecognized location from A7's data core 20804 | -5/Cetus | Found Corrupted Prototype Protection 20830 | -5/Cetus | Entered Archives 20830 | -5/Archives | Accompanied by 5 allies 20894 | -5/Archives | Discovered new exit (range 15) 20911 | -5/Archives | Identified exit to Hub_04(d) 20920 | -5/Archives | Entered Hub_04(d) 20920 | -5/Hub_04(d) | Accompanied by 4 allies 20948 | -5/Hub_04(d) | Discovered exit to Factory (range 17) 21858 | -5/Hub_04(d) | Network Hub disabled 21868 | -5/Hub_04(d) | Disrupted transfer network 21876 | -5/Hub_04(d) | Entered Factory 21876 | -4/Factory | Evolved 2 slots: Power x1, Propulsion x1 21897 | -4/Factory | Identified Med. Regenerative Plating 22277 | -4/Factory | Identified exit to Upper Caves 22277 | -4/Factory | Identified exit to Armory 22385 | -4/Factory | Fabricated Adv. Hacking Suite (x1) 22412 | -4/Factory | Fabricated Adv. Hacking Suite (x1) 22440 | -4/Factory | Fabricated Adv. Hacking Suite (x1) 22487 | -4/Factory | Fabricated Exp. Terrain Scan Processor? 22538 | -4/Factory | Fabricated Cld. Plasma Cannon? 22628 | -4/Factory | Fabricated Cld. Plasma Cannon (x1) 22867 | -4/Factory | Local fabrication network quarantined 22961 | -4/Factory | Repaired Imp. Cooling System 22984 | -4/Factory | Repaired Imp. Cooling System 23030 | -4/Factory | Repaired Enh. Flexi-carbon Leg 23087 | -4/Factory | Repaired Broken Enh. Flexi-carbon Leg 23327 | -4/Factory | Found Prototype Processor 23327 | -4/Factory | Identified Exp. Melee Analysis Suite 23369 | -4/Factory | Entered Armory 23486 | -4/Armory | Identified exit to Research 23918 | -4/Armory | Spotted B-86 Titan 23988 | -4/Armory | Fabricated F-cell Engine (x1) 24013 | -4/Armory | Fabricated Adv. Signal Interpreter? 24625 | -4/Armory | Fabricated Enh. Flexi-carbon Leg? 24757 | -4/Armory | Fabricated Enh. Flexi-carbon Leg? 24870 | -4/Armory | Fabricated Adv. Cooling System (x1) 24877 | -4/Armory | Fabricated Enh. Flexi-carbon Leg? 24898 | -4/Armory | Fabricated Adv. Cooling System (x1) 24927 | -4/Armory | Fabricated Adv. Cooling System (x1) 25068 | -4/Armory | Fabricated Adv. Armor Integrity Analyzer (x1) 25339 | -4/Armory | Repaired Cld. Plasma Cannon 25381 | -4/Armory | Repaired Cld. Plasma Cannon 25546 | -4/Armory | Fabricated Lrn. Terrain Scanner (x1) 25618 | -4/Armory | Fabricated Enh. Nova Cannon (x1) 25657 | -4/Armory | System corruption reached 10% 25742 | -4/Armory | Core integrity fell below 50% 25779 | -4/Armory | Lost 16 parts (2p5n5u4w) 25866 | -4/Armory | Discovered new exit (range 11) 25921 | -4/Armory | Identified exit to Lab 25963 | -4/Armory | Build established: Hacker-Mutant 26014 | -4/Armory | Entered Lab 26016 | -4/Lab | Discovered exit to Research (range 9) 26038 | -4/Lab | Hidden lab's door opened automatically 26038 | -4/Lab | Sensor layout match revealed 26039 | -4/Lab | Gained access to the hidden lab's interior 26106 | -4/Lab | Found Alien Artifact 26106 | -4/Lab | Identified Integrated Reactor 26106 | -4/Lab | Installed Integrated Reactor, increased core energy generation (+10) 26122 | -4/Lab | Found Alien Artifact 26122 | -4/Lab | Identified Core Expander 26122 | -4/Lab | Installed Core Expander, added new Utility slot 26158 | -4/Lab | Found Quantum Router 26167 | -4/Lab | Found Prototype Protection 26257 | -4/Lab | Found Prototype Energy Cannon 26260 | -4/Lab | Identified Warp Cannon 26260 | -4/Lab | Identified Exp. Powered Armor 26324 | -4/Lab | Found Alien Artifact 26416 | -4/Lab | Build established: Wizard-Mutant 26480 | -4/Lab | Found Alien Artifact 26517 | -4/Lab | Entered Research 26517 | -3/Research | Evolved 2 slots: Propulsion x1, Utility x1 26745 | -3/Research | Identified Transdimensional Reconstructor 26745 | -3/Research | Identified Core Reset Matrix 26774 | -3/Research | Identified exit to Quarantine 27330 | -3/Research | Central database locked down 27515 | -3/Research | Repaired Enh. Flexi-carbon Leg 27537 | -3/Research | Repaired Flexi-carbon Leg 28027 | -3/Research | Fabricated Adv. Cooling System (x1) 28078 | -3/Research | Lost 4 parts (1n2u1w) 28323 | -3/Research | Entered Quarantine 28342 | -3/Quarantine | Found Prototype Device 28342 | -3/Quarantine | Identified Exp. Thermal Shield 28403 | -3/Quarantine | Found Prototype Hackware 28540 | -3/Quarantine | Repaired Enh. Flexi-carbon Leg 28578 | -3/Quarantine | Repaired Broken Enh. Flexi-carbon Leg 28599 | -3/Quarantine | First assault squad dispatched 28663 | -3/Quarantine | Found Alien Impact Weapon 28719 | -3/Quarantine | Discovered new exit (range 22) 28723 | -3/Quarantine | Central database locked down 28880 | -3/Quarantine | Identified Core Stripper 28891 | -3/Quarantine | Spotted Alpha 7 28893 | -3/Quarantine | Destroyed Alpha 7 28972 | -3/Quarantine | Found Prototype Ballistic Gun 28972 | -3/Quarantine | Identified Multirail 29056 | -3/Quarantine | Found Alien Artifact 29145 | -3/Quarantine | Repaired Exp. Cooling System 29297 | -3/Quarantine | Identified exit to Research 29298 | -3/Quarantine | Entered Research 29298 | -2/Research | Evolved 2 slots: Utility x2 29298 | -2/Research | Identified Exp. System Shield 29500 | -2/Research | Identified Subatomic Replicator 29599 | -2/Research | Identified exit to Testing 30123 | -2/Research | Entered Testing 30179 | -2/Testing | Found Prototype Energy Gun 30179 | -2/Testing | Identified Warp Gun 30354 | -2/Testing | Used Subatomic Replicator to replicate Prototype Leg 30356 | -2/Testing | Found Prototype Leg 30356 | -2/Testing | Identified Myomer Exoskeleton 30364 | -2/Testing | Fabricated Centrium Leg? 30460 | -2/Testing | Found Exp. Signal Interpreter 30521 | -2/Testing | Fabricated Exp. Cooling System? 30601 | -2/Testing | Central database locked down 30748 | -2/Testing | Repaired Broken Exp. Cooling System? 30792 | -2/Testing | Repaired Lgt. Particle Reactor 30811 | -2/Testing | Repaired Adv. Cooling System 30832 | -2/Testing | Repaired Hvy. Phase Cannon 31265 | -2/Testing | Found Prototype Ballistic Gun 31266 | -2/Testing | Identified Hyp. Multirail 31281 | -2/Testing | Spotted PP-G7QNFR8QDN 31401 | -2/Testing | Destroyed PP-G7QNFR8QDN 31470 | -2/Testing | Discovered new exit (range 22) 31489 | -2/Testing | Found Prototype Ballistic Cannon 31496 | -2/Testing | Identified Omega Cannon 31544 | -2/Testing | Identified exit to Access 31565 | -2/Testing | Found Prototype Protection 31735 | -2/Testing | Spotted Fortress 31757 | -2/Testing | Destroyed Fortress 31774 | -2/Testing | Found Prototype Device 31774 | -2/Testing | Identified Exp. Force Field 31780 | -2/Testing | Found Prototype Reactor 31780 | -2/Testing | Identified Vortex Chain Reactor 31785 | -2/Testing | Found Vortex Chain Reactor 31793 | -2/Testing | Found Prototype Device 31844 | -2/Testing | Discovered new exit (range 20) 31862 | -2/Testing | Identified exit to Section 7 31867 | -2/Testing | Entered Section 7 31917 | -2/Section 7 | Found Alien Artifact 31917 | -2/Section 7 | Identified Integrity Redistributor 31917 | -2/Section 7 | Used Integrity Redistributor, redistributed integrity from core (-111) 31971 | -2/Section 7 | Found Alien Artifact 31971 | -2/Section 7 | Identified Microwarp Drive 32102 | -2/Section 7 | Spotted S7 Guard 32109 | -2/Section 7 | Found Alien Artifact 32110 | -2/Section 7 | Identified Integrated Singularity Reactor 32110 | -2/Section 7 | Installed Integrated Singularity Reactor, increased core energy generation (+20) 32113 | -2/Section 7 | Destroyed S7 Guard 32162 | -2/Section 7 | Found Integrity Redistributor 32665 | -2/Section 7 | Spotted Executioner 32668 | -2/Section 7 | Destroyed Executioner 32668 | -2/Section 7 | Spotted Alpha 7 32670 | -2/Section 7 | Spotted Executioner 32678 | -2/Section 7 | Destroyed Executioner 32765 | -2/Section 7 | Found Transdimensional Reconstructor 32767 | -2/Section 7 | Found Alien Artifact 32855 | -2/Section 7 | Found Alien Energy Gun 32951 | -2/Section 7 | Build established: Hacker-Mutant 33047 | -2/Section 7 | Identified Sigix Quantum Sheargun 33261 | -2/Section 7 | Found Sigix Quantum Sheargun 33263 | -2/Section 7 | Found Sigix Quantum Sheargun 33318 | -2/Section 7 | Spotted B-99 Colossus 33318 | -2/Section 7 | Warped through subspace 33530 | -2/Section 7 | Found Alien Artifact 33530 | -2/Section 7 | Identified LRC Boosters 33530 | -2/Section 7 | Installed LRC Boosters, increased mass support (+10) 33618 | -2/Section 7 | Found Alien Artifact 33618 | -2/Section 7 | Identified Integrated Dissipator 33618 | -2/Section 7 | Installed Integrated Dissipator, increased core heat dissipation (+20) 33621 | -2/Section 7 | Found Integrated Dissipator 33621 | -2/Section 7 | Installed Integrated Dissipator, increased core heat dissipation (+20) 33623 | -2/Section 7 | Found Integrated Dissipator 33623 | -2/Section 7 | Installed Integrated Dissipator, increased core heat dissipation (+20) 33661 | -2/Section 7 | Identified EM Dispersion Field 33724 | -2/Section 7 | Identified Hpw. Transdimensional Reconstructor 33724 | -2/Section 7 | Warped through subspace 33972 | -2/Section 7 | Spotted B-90 Cyclops 34115 | -2/Section 7 | Found Alien Artifact 34115 | -2/Section 7 | Identified Integrated Mediator 34115 | -2/Section 7 | Installed Integrated Mediator, increased core attachment efficiency. 34208 | -2/Section 7 | Entered Access 34208 | -1/Access | Evolved 2 slots: Power x1, Utility x1 34342 | -1/Access | Identified exit to Command 34414 | -1/Access | Fabricated Exp. Weapon Cycler (x1) 34423 | -1/Access | Fabricated Huge Storage Unit (x1) 34446 | -1/Access | Fabricated Adv. Particle Charger (x2) 34913 | -1/Access | Local fabrication network quarantined 35322 | -1/Access | Identified SHELL Armor 35327 | -1/Access | Entered Command 35431 | -1/Command | Spotted M Guard 35432 | -1/Command | Spotted Combat Programmer 35432 | -1/Command | Spotted Combat Programmer 35452 | -1/Command | Spotted M Guard 35467 | -1/Command | System corruption reached 10% 35486 | -1/Command | Used Integrity Redistributor, redistributed integrity from core (-296) 35507 | -1/Command | System corruption reached 30% 35539 | -1/Command | Destroyed Combat Programmer 35560 | -1/Command | Destroyed Combat Programmer 35577 | -1/Command | First assault squad dispatched 35607 | -1/Command | Destroyed M Guard 35619 | -1/Command | Destroyed M Guard 35619 | -1/Command | All MAIN.C guards destroyed 35632 | -1/Command | Found Corrupted Prototype Device 35634 | -1/Command | Found Corrupted Prototype Reactor 35637 | -1/Command | Found Corrupted Prototype Reactor 35639 | -1/Command | Found Corrupted Prototype Reactor 35643 | -1/Command | Found Corrupted Prototype Device 35648 | -1/Command | Identified AEGIS Remote Shield (x2) 35679 | -1/Command | Found Corrupted Prototype Reactor 35680 | -1/Command | Identified Zero-point Reactor (x4) 35759 | -1/Command | Met MAIN.C 35763 | -1/Command | 0b10 Conduit disabled 35804 | -1/Command | Destroyed MAIN.C Shell 35806 | -1/Command | Surrendered to MAIN.C 35806 | -1/Command | Loaded intel: 49 machine locations 35806 | -1/Command | Loaded intel: 100 trap records 35806 | -1/Command | Identified exit to Surface 35806 | -1/Command | Discovered exit to Surface (range 43) 35806 | -1/Command | Discovered exit to Surface (range 89) 35819 | -1/Command | Found Prototype Reactor 35819 | -1/Command | Identified Singularity Reactor 35863 | -1/Command | Found Hyp. Multirail 35873 | -1/Command | Found Prototype Device 35873 | -1/Command | Identified Adv. Particle Accelerator 35878 | -1/Command | Found Exp. Targeting Computer 35889 | -1/Command | Found Vortex Chain Reactor 35891 | -1/Command | Found Zero-point Reactor 35929 | -1/Command | Build established: Generator-Gunner 36039 | -1/Command | MAIN.C activated Command garrisons 36076 | -1/Command | Unknown forces attacked Command 36076 | -1/Command | Spotted EQ-003 36076 | -1/Command | Spotted EQ-006 36076 | -1/Command | Spotted EQ-004 36076 | -1/Command | Spotted EQ-000 36076 | -1/Command | Spotted EQ-002 36076 | -1/Command | Spotted EQ-005 36076 | -1/Command | Spotted EQ-001 36097 | -1/Command | Destroyed EQ-006 36116 | -1/Command | Destroyed EQ-000 36121 | -1/Command | Destroyed EQ-005 36138 | -1/Command | Destroyed EQ-001 36155 | -1/Command | Lost 6 parts (1p2u3w) 36160 | -1/Command | Spotted EQ-018 36160 | -1/Command | Spotted EQ-019 36160 | -1/Command | Spotted EQ-020 36161 | -1/Command | Spotted EQ-024 36163 | -1/Command | Spotted EQ-021 36175 | -1/Command | Spotted EQ-023 36175 | -1/Command | Destroyed EQ-018 36231 | -1/Command | Spotted EQ-036 36232 | -1/Command | Spotted EQ-016 36238 | -1/Command | Spotted EQ-017 36240 | -1/Command | Spotted EQ-027 36243 | -1/Command | Destroyed EQ-017 36249 | -1/Command | Spotted EQ-007 36252 | -1/Command | Destroyed EQ-036 36253 | -1/Command | Spotted EQ-013 36261 | -1/Command | Destroyed EQ-013 36276 | -1/Command | Spotted EQ-052 36280 | -1/Command | Spotted EQ-040 36286 | -1/Command | Spotted EQ-038 36362 | -1/Command | Spotted EQ-042 36372 | -1/Command | Spotted EQ-045 36372 | -1/Command | Spotted EQ-043 36386 | -1/Command | Destroyed EQ-043 36388 | -1/Command | Spotted EQ-075 36397 | -1/Command | Spotted EQ-062 36401 | -1/Command | Destroyed EQ-045 36415 | -1/Command | Spotted EQ-065 36448 | -1/Command | Spotted EQ-077 36495 | -1/Command | Spotted EQ-102 36497 | -1/Command | Spotted EQ-085 36499 | -1/Command | Destroyed EQ-102 36525 | -1/Command | Destroyed EQ-085 36533 | -1/Command | Spotted EQ-074 36542 | -1/Command | Destroyed EQ-074 36545 | -1/Command | Spotted EQ-109 36546 | -1/Command | Spotted EQ-090 36569 | -1/Command | Destroyed EQ-090 36573 | -1/Command | Spotted EQ-087 36612 | -1/Command | Spotted EQ-118 36612 | -1/Command | Spotted EQ-136 36613 | -1/Command | Spotted EQ-122 36622 | -1/Command | Spotted EQ-110 36642 | -1/Command | Spotted EQ-123 36658 | -1/Command | Spotted EQ-111 36658 | -1/Command | Spotted EQ-112 36660 | -1/Command | Spotted EQ-120 36663 | -1/Command | Spotted EQ-128 36679 | *** | Escaped! Last Messages --------------- 36657_ Penetrated by Slug. 36657_ Slug penetrates Earth. 36657_ Slug penetrates Reinforced Barrier. 36658_ Acquired 5 matter. 36659_ Slug penetrates Reinforced Barrier. 36661_ Slug penetrates Wall. 36662_ Penetrated by Slug. 36662_ Slug penetrates Reinforced Barrier. 36662_ Penetrated by Slug. 36664_ Slug penetrates Earth. 36665_ Penetrated by Slug. 36667_ Slug penetrates Wall. 36667_ Slug penetrates Quantum Router. 36668_ Penetrated by Slug. 36668_ Exp. Weapon Shielding destroyed. 36671_ Slug penetrates Wall. 36671_ Penetrated by Slug. 36671_ Slug penetrates Wall. 36672_ Penetrated by Slug. 36676_ System corrupted: Matter fused (-8). Map ----- +----------------------------------------------------+ | ! ############# ! #%! # ==##?# | | #???????????# ### """ ###?# | | #???????????####+####" """"####?#?#"" | | #??????????????# #??##% #???#?# | | #??????????????# #???# #???#?# | | #??????????????# #???# % #???#?# | | ################??????????# #???# #???#?# | | #??????????# #???# #####?# | | #??"########+##### "# ##?# | | ##"% %[ ## %= " ##?# | | + %"= ! ## = * " ##?# % | | #### %[! ""%! %" ##?# | | #??# %* * ""*= ![%[ #?# | | ## # %=*! !%[" [==%=! #?#!%[% | | ################# " !%! = % [==%%%%!####=%%! | | """"#?????????????# =! !"] [%!%%%=%%%!/=%[% | | """#?????????????# %! [*]%===!!!%%%=%! | | """#?????????????# """ ]" =%]%![%[%[%!%% | | """#?????????????# "" % " "[%===!=####![% | | """"#?????????????# # " !%!%![*#?#%= | | #####?????????????# # ##"!= %! #?#* | | ??????????????????############## ##" #?##### | | ???????????????????????######### %# " %% #?????? | | ???????????????????????# ##" %* "######## | | ???????????????????????# ##" "#??????? | | ???????????????????????# @ #########" ##??????? | | ???????????????????????# #???????## %#???????? | | ???????????????????????#####???????# % #???????? | | ??????????????????????????????????# #% #???????? | | ?????????????????????????????????# # ???????? | | ?????????????????????????????????# # #???????? | | ????????????????????????????????? # #???????? | | ??????????????????????????????### # ######### | | ??????????????????????????????# !% ! # | | ??????????????????????????????# % = T# | | ??????????????????????????????# # #### ## | | ?????????????????###??????????# # # ##### ## | | ????????????###### #######????# #??####?#]] ] =# | | ????????????# #????# #########]]!* =# | | ????????????# #????# # # !*!]*=# | | ????????????# "" #????# # #!!! ==# | | ????????????# """ #????# # ######### | | ????????????# "R ###### # #???????? | | ????????????# """ /^ # #???????? | | ????????????# """ #^ ^ # #???????? | | ????????????# #^^^ # #???????? | | ????????????# # # #???????? | | ????????????# # # #???????? | | ????????????# + # #???????? | | ????????????# # + #???????? | +----------------------------------------------------+ Best States ------------- Heat Dissipation 240 Energy Generation 113 Energy Capacity 1700 Matter Stores 300 Matter Capacity 300 Sight Range 16 Robot Scan Range 18 Terrain Scan Range 24 Terrain Scan Density 1010 Jamming Range 16 Armor Coverage 900 Resistance: EM 75 Weapon Shielding 90 Weapon Cycling 30 Evasion (%) 55 Targeting Accuracy 24 Target Analysis 8 Armor Integrity Analysis 40 Recoil Reduction 4 Particle Charging 50 Offensive Hacking 55 Defensive Hacking 66 Item Schematics ----------------- Hcp. Storage Unit | -10/Materials | Hacked Hacking Suite | -8/Materials | Scanalyzed Combat Drone Bay | -7/Data Miner | Free Lgt. Regenerative Plating | -7/Data Miner | Free Cmb. Gravmag System | -7/Data Miner | Free Exp. Terrain Scan Processor | -7/Data Miner | Free Exp. Targeting Computer | -7/Data Miner | Free Plasma Sword | -7/Data Miner | Free Adv. Sensor Array | -6/Factory | Hacked Hvy. Riot Gun | -6/Zion | Free Arc Thrower | -6/Zion | Free Barrage Gun | -6/Zion | Free Slug Cannon | -6/Zion | Free Flamer | -6/Zion | Free Adv. Signal Interpreter | -5/Factory | Hacked Lrn. Sensor Array | -5/Factory | Hacked Lrn. Terrain Scanner | -5/Factory | Hacked Enh. Flexi-carbon Leg | -5/Factory | Scanalyzed Imp. Armor Integrity Analyzer | -5/Factory | Scanalyzed Lyr. Medium Armor Plating | -5/Factory | Scanalyzed Adv. Energy Well | -5/Factory | Scanalyzed Imp. Hacking Suite | -5/Factory | Hacked Cld. Plasma Cannon | -5/Factory | Hacked Imp. Plasma Cutter | -5/Factory | Hacked F-cell Engine | -5/Factory | Hacked Adv. Powered Armor | -5/Extension | Hacked Adv. Armor Integrity Analyzer | -5/Extension | Hacked Adv. Hacking Suite | -5/Extension | Hacked Imp. Weapon Cycler | -4/Factory | Scanalyzed Adv. Particle Charger | -4/Factory | Scanalyzed Imp. Cooling System | -4/Factory | Scanalyzed Enh. Nova Cannon | -4/Factory | Hacked Adv. Cooling System | -4/Armory | Hacked Adv. Myomer Leg | -3/Research | Hacked Exp. Signal Interpreter | -3/Research | Hacked Exp. Sensor Array | -3/Research | Hacked Centrium Leg | -3/Quarantine | Hacked Exp. Cooling System | -2/Research | Scanalyzed Exp. Weapon Cycler | -2/Testing | Hacked Huge Storage Unit | -2/Testing | Hacked Robot Schematics ------------------ S-27 Virus | -7/Data Miner | Free G-50 Soldier | -7/Data Miner | Free L-41 Fighter | -7/Data Miner | Free H-66 Slayer | -7/Data Miner | Free P-70 Sage | -7/Data Miner | Free I-36 Angel | -7/Data Miner | Free I-47 Archangel | -7/Data Miner | Free O-24 Administrator | -5/Factory | Hacked A-15 Conveyor | -5/Factory | Hacked A-27 Freighter | -3/Research | Hacked Fabricated ------------ Adv. Sensor Array | x1 | -6/Factory Adv. Sensor Array | x1 | -6/Factory Adv. Signal Interpreter | x2 | -5/Factory Lrn. Sensor Array | x1 | -5/Factory Adv. Hacking Suite | x1 | -4/Factory Adv. Hacking Suite | x1 | -4/Factory Adv. Hacking Suite | x1 | -4/Factory Exp. Terrain Scan Processor | x1 | -4/Factory Cld. Plasma Cannon | x1 | -4/Factory Cld. Plasma Cannon | x1 | -4/Factory F-cell Engine | x1 | -4/Armory Adv. Signal Interpreter | x2 | -4/Armory Enh. Flexi-carbon Leg | x1 | -4/Armory Enh. Flexi-carbon Leg | x1 | -4/Armory Adv. Cooling System | x1 | -4/Armory Enh. Flexi-carbon Leg | x1 | -4/Armory Adv. Cooling System | x1 | -4/Armory Adv. Cooling System | x1 | -4/Armory Adv. Armor Integrity Analyzer | x1 | -4/Armory Lrn. Terrain Scanner | x1 | -4/Armory Enh. Nova Cannon | x1 | -4/Armory Adv. Cooling System | x1 | -3/Research Centrium Leg | x1 | -2/Testing Exp. Cooling System | x1 | -2/Testing Exp. Weapon Cycler | x1 | -1/Access Huge Storage Unit | x1 | -1/Access Adv. Particle Charger | x2 | -1/Access Alien Tech Used ----------------- Integrated Reactor Core Expander Core Stripper Subatomic Replicator Integrity Redistributor Microwarp Drive Integrated Singularity Reactor Sigix Quantum Sheargun Transdimensional Reconstructor LRC Boosters Integrated Dissipator High-powered Transdimensional Reconstructor Integrated Mediator Achievements -------------- None Challenges ------------ None Game ------ Seed HackingSingularityPropulsion Manual? 0 Play Time 05:43:53 Cumulative 1261.3 hours Start 2021.06.07 @ 16:51:57 End 2021.06.07 @ 23:41:20 Sessions 1 Manual Loads 0 Difficulty Rogue Special Mode None Game No. 427 Rogue 427 Adventurer 0 Explorer 0 Win Type 0 Total 91 Types 20/12/37/5/1/2/12/1/1 Lore% 97 Gallery% 96 Achievement% 85 Wizard Run 0 Options --------- ASCII 0 Keyboard 0 Movement Numpad Keybinds 0 Fullscreen 1 Font 18/SmallcapsGlow Map View 76x50 Tactical HUD 1 Map Filters NONE Filters NONE Steam 1 RUN: 3cbc1dcc-69ed-4619-91d2-c5e15696c719